Workbook

Sheet RotinaCRC
A1: CRC CAN
B2: Inicio relativo | O2: CRC: | P2: 0111100000100110
P3: Confirmado!
C5: 1 | D5: 2 | E5: 3 | F5: 4 | G5: 5 | H5: 6 | I5: 7 | J5: 8 | K5: 9 | L5: 10 | M5: 11 | N5: 12 | O5: 13 | P5: 14 | Q5: 15 | R5: 16 | S5: 17
B6: Data | C6: 1 | D6: 0 | E6: 0 | F6: 0 | G6: 0 | H6: 0 | I6: 1 | J6: 0 | K6: 0 | L6: 0 | M6: 1 | N6: 0 | O6: 0 | P6: 0 | Q6: 0 | R6: 0 | S6: 0 | T6: 1 | U6: 0 | V6: 0 | W6: 0 | X6: 0 | Y6: 0 | Z6: 1 | AA6: 1 | AB6: 0 | AC6: 1 | AD6: 1 | AE6: 0 | AF6: 1 | AG6: 0 | AH6: 1 | AI6: 1 | AJ6: 0 | AK6: 0 | AL6: 0 | AM6: 0 | AN6: 0 | AO6: 0 | AP6: 0 | AQ6: 0 | AR6: 0 | AS6: 0 | AT6: 0 | AU6: 0 | AV6: 0 | AW6: 0 | AX6: 0 | AY6: 0 | AZ6: 0 | BA6: 0 | BB6: FIM
B7: Divisor | C7: 1 | D7: 1 | E7: 0 | F7: 0 | G7: 0 | H7: 0 | I7: 0 | J7: 0 | K7: 0 | L7: 0 | M7: 0 | N7: 0 | O7: 0 | P7: 0 | Q7: 1 | R7: 0 | S7: 1 | T7: FIM
B8: Data XOR Divisor | C8: 0 | D8: 1 | E8: 0 | F8: 0 | G8: 0 | H8: 0 | I8: 1 | J8: 0 | K8: 0 | L8: 0 | M8: 1 | N8: 0 | O8: 0 | P8: 0 | Q8: 1 | R8: 0 | S8: 1 | T8: 1 | U8: 0 | V8: 0 | W8: 0 | X8: 0 | Y8: 0 | Z8: 1 | AA8: 1 | AB8: 0 | AC8: 1 | AD8: 1 | AE8: 0 | AF8: 1 | AG8: 0 | AH8: 1 | AI8: 1 | AJ8: 0 | AK8: 0 | AL8: 0 | AM8: 0 | AN8: 0 | AO8: 0 | AP8: 0 | AQ8: 0 | AR8: 0 | AS8: 0 | AT8: 0 | AU8: 0 | AV8: 0 | AW8: 0 | AX8: 0 | AY8: 0 | AZ8: 0 | BA8: 0 | BB8: FIM
B10: Data | C10: 0 | D10: 1 | E10: 0 | F10: 0 | G10: 0 | H10: 0 | I10: 1 | J10: 0 | K10: 0 | L10: 0 | M10: 1 | N10: 0 | O10: 0 | P10: 0 | Q10: 1 | R10: 0 | S10: 1 | T10: 1 | U10: 0 | V10: 0 | W10: 0 | X10: 0 | Y10: 0 | Z10: 1 | AA10: 1 | AB10: 0 | AC10: 1 | AD10: 1 | AE10: 0 | AF10: 1 | AG10: 0 | AH10: 1 | AI10: 1 | AJ10: 0 | AK10: 0 | AL10: 0 | AM10: 0 | AN10: 0 | AO10: 0 | AP10: 0 | AQ10: 0 | AR10: 0 | AS10: 0 | AT10: 0 | AU10: 0 | AV10: 0 | AW10: 0 | AX10: 0 | AY10: 0 | AZ10: 0 | BA10: 0 | BB10: FIM
B11: Divisor | D11: 1 | E11: 1 | F11: 0 | G11: 0 | H11: 0 | I11: 0 | J11: 0 | K11: 0 | L11: 0 | M11: 0 | N11: 0 | O11: 0 | P11: 0 | Q11: 0 | R11: 1 | S11: 0 | T11: 1 | U11: FIM
B12: Data XOR Divisor | C12: 0 | D12: 0 | E12: 1 | F12: 0 | G12: 0 | H12: 0 | I12: 1 | J12: 0 | K12: 0 | L12: 0 | M12: 1 | N12: 0 | O12: 0 | P12: 0 | Q12: 1 | R12: 1 | S12: 1 | T12: 0 | U12: 0 | V12: 0 | W12: 0 | X12: 0 | Y12: 0 | Z12: 1 | AA12: 1 | AB12: 0 | AC12: 1 | AD12: 1 | AE12: 0 | AF12: 1 | AG12: 0 | AH12: 1 | AI12: 1 | AJ12: 0 | AK12: 0 | AL12: 0 | AM12: 0 | AN12: 0 | AO12: 0 | AP12: 0 | AQ12: 0 | AR12: 0 | AS12: 0 | AT12: 0 | AU12: 0 | AV12: 0 | AW12: 0 | AX12: 0 | AY12: 0 | AZ12: 0 | BA12: 0 | BB12: FIM
B14: Data | C14: 0 | D14: 0 | E14: 1 | F14: 0 | G14: 0 | H14: 0 | I14: 1 | J14: 0 | K14: 0 | L14: 0 | M14: 1 | N14: 0 | O14: 0 | P14: 0 | Q14: 1 | R14: 1 | S14: 1 | T14: 0 | U14: 0 | V14: 0 | W14: 0 | X14: 0 | Y14: 0 | Z14: 1 | AA14: 1 | AB14: 0 | AC14: 1 | AD14: 1 | AE14: 0 | AF14: 1 | AG14: 0 | AH14: 1 | AI14: 1 | AJ14: 0 | AK14: 0 | AL14: 0 | AM14: 0 | AN14: 0 | AO14: 0 | AP14: 0 | AQ14: 0 | AR14: 0 | AS14: 0 | AT14: 0 | AU14: 0 | AV14: 0 | AW14: 0 | AX14: 0 | AY14: 0 | AZ14: 0 | BA14: 0 | BB14: FIM
B15: Divisor | E15: 1 | F15: 1 | G15: 0 | H15: 0 | I15: 0 | J15: 0 | K15: 0 | L15: 0 | M15: 0 | N15: 0 | O15: 0 | P15: 0 | Q15: 0 | R15: 0 | S15: 1 | T15: 0 | U15: 1 | V15: FIM
B16: Data XOR Divisor | C16: 0 | D16: 0 | E16: 0 | F16: 1 | G16: 0 | H16: 0 | I16: 1 | J16: 0 | K16: 0 | L16: 0 | M16: 1 | N16: 0 | O16: 0 | P16: 0 | Q16: 1 | R16: 1 | S16: 0 | T16: 0 | U16: 1 | V16: 0 | W16: 0 | X16: 0 | Y16: 0 | Z16: 1 | AA16: 1 | AB16: 0 | AC16: 1 | AD16: 1 | AE16: 0 | AF16: 1 | AG16: 0 | AH16: 1 | AI16: 1 | AJ16: 0 | AK16: 0 | AL16: 0 | AM16: 0 | AN16: 0 | AO16: 0 | AP16: 0 | AQ16: 0 | AR16: 0 | AS16: 0 | AT16: 0 | AU16: 0 | AV16: 0 | AW16: 0 | AX16: 0 | AY16: 0 | AZ16: 0 | BA16: 0 | BB16: FIM
B18: Data | C18: 0 | D18: 0 | E18: 0 | F18: 1 | G18: 0 | H18: 0 | I18: 1 | J18: 0 | K18: 0 | L18: 0 | M18: 1 | N18: 0 | O18: 0 | P18: 0 | Q18: 1 | R18: 1 | S18: 0 | T18: 0 | U18: 1 | V18: 0 | W18: 0 | X18: 0 | Y18: 0 | Z18: 1 | AA18: 1 | AB18: 0 | AC18: 1 | AD18: 1 | AE18: 0 | AF18: 1 | AG18: 0 | AH18: 1 | AI18: 1 | AJ18: 0 | AK18: 0 | AL18: 0 | AM18: 0 | AN18: 0 | AO18: 0 | AP18: 0 | AQ18: 0 | AR18: 0 | AS18: 0 | AT18: 0 | AU18: 0 | AV18: 0 | AW18: 0 | AX18: 0 | AY18: 0 | AZ18: 0 | BA18: 0 | BB18: FIM
B19: Divisor | F19: 1 | G19: 1 | H19: 0 | I19: 0 | J19: 0 | K19: 0 | L19: 0 | M19: 0 | N19: 0 | O19: 0 | P19: 0 | Q19: 0 | R19: 0 | S19: 0 | T19: 1 | U19: 0 | V19: 1 | W19: FIM
B20: Data XOR Divisor | C20: 0 | D20: 0 | E20: 0 | F20: 0 | G20: 1 | H20: 0 | I20: 1 | J20: 0 | K20: 0 | L20: 0 | M20: 1 | N20: 0 | O20: 0 | P20: 0 | Q20: 1 | R20: 1 | S20: 0 | T20: 1 | U20: 1 | V20: 1 | W20: 0 | X20: 0 | Y20: 0 | Z20: 1 | AA20: 1 | AB20: 0 | AC20: 1 | AD20: 1 | AE20: 0 | AF20: 1 | AG20: 0 | AH20: 1 | AI20: 1 | AJ20: 0 | AK20: 0 | AL20: 0 | AM20: 0 | AN20: 0 | AO20: 0 | AP20: 0 | AQ20: 0 | AR20: 0 | AS20: 0 | AT20: 0 | AU20: 0 | AV20: 0 | AW20: 0 | AX20: 0 | AY20: 0 | AZ20: 0 | BA20: 0 | BB20: FIM
B22: Data | C22: 0 | D22: 0 | E22: 0 | F22: 0 | G22: 1 | H22: 0 | I22: 1 | J22: 0 | K22: 0 | L22: 0 | M22: 1 | N22: 0 | O22: 0 | P22: 0 | Q22: 1 | R22: 1 | S22: 0 | T22: 1 | U22: 1 | V22: 1 | W22: 0 | X22: 0 | Y22: 0 | Z22: 1 | AA22: 1 | AB22: 0 | AC22: 1 | AD22: 1 | AE22: 0 | AF22: 1 | AG22: 0 | AH22: 1 | AI22: 1 | AJ22: 0 | AK22: 0 | AL22: 0 | AM22: 0 | AN22: 0 | AO22: 0 | AP22: 0 | AQ22: 0 | AR22: 0 | AS22: 0 | AT22: 0 | AU22: 0 | AV22: 0 | AW22: 0 | AX22: 0 | AY22: 0 | AZ22: 0 | BA22: 0 | BB22: FIM
B23: Divisor | G23: 1 | H23: 1 | I23: 0 | J23: 0 | K23: 0 | L23: 0 | M23: 0 | N23: 0 | O23: 0 | P23: 0 | Q23: 0 | R23: 0 | S23: 0 | T23: 0 | U23: 1 | V23: 0 | W23: 1 | X23: FIM
B24: Data XOR Divisor | C24: 0 | D24: 0 | E24: 0 | F24: 0 | G24: 0 | H24: 1 | I24: 1 | J24: 0 | K24: 0 | L24: 0 | M24: 1 | N24: 0 | O24: 0 | P24: 0 | Q24: 1 | R24: 1 | S24: 0 | T24: 1 | U24: 0 | V24: 1 | W24: 1 | X24: 0 | Y24: 0 | Z24: 1 | AA24: 1 | AB24: 0 | AC24: 1 | AD24: 1 | AE24: 0 | AF24: 1 | AG24: 0 | AH24: 1 | AI24: 1 | AJ24: 0 | AK24: 0 | AL24: 0 | AM24: 0 | AN24: 0 | AO24: 0 | AP24: 0 | AQ24: 0 | AR24: 0 | AS24: 0 | AT24: 0 | AU24: 0 | AV24: 0 | AW24: 0 | AX24: 0 | AY24: 0 | AZ24: 0 | BA24: 0 | BB24: FIM
B26: Data | C26: 0 | D26: 0 | E26: 0 | F26: 0 | G26: 0 | H26: 1 | I26: 1 | J26: 0 | K26: 0 | L26: 0 | M26: 1 | N26: 0 | O26: 0 | P26: 0 | Q26: 1 | R26: 1 | S26: 0 | T26: 1 | U26: 0 | V26: 1 | W26: 1 | X26: 0 | Y26: 0 | Z26: 1 | AA26: 1 | AB26: 0 | AC26: 1 | AD26: 1 | AE26: 0 | AF26: 1 | AG26: 0 | AH26: 1 | AI26: 1 | AJ26: 0 | AK26: 0 | AL26: 0 | AM26: 0 | AN26: 0 | AO26: 0 | AP26: 0 | AQ26: 0 | AR26: 0 | AS26: 0 | AT26: 0 | AU26: 0 | AV26: 0 | AW26: 0 | AX26: 0 | AY26: 0 | AZ26: 0 | BA26: 0 | BB26: FIM
B27: Divisor | H27: 1 | I27: 1 | J27: 0 | K27: 0 | L27: 0 | M27: 0 | N27: 0 | O27: 0 | P27: 0 | Q27: 0 | R27: 0 | S27: 0 | T27: 0 | U27: 0 | V27: 1 | W27: 0 | X27: 1 | Y27: FIM
B28: Data XOR Divisor | C28: 0 | D28: 0 | E28: 0 | F28: 0 | G28: 0 | H28: 0 | I28: 0 | J28: 0 | K28: 0 | L28: 0 | M28: 1 | N28: 0 | O28: 0 | P28: 0 | Q28: 1 | R28: 1 | S28: 0 | T28: 1 | U28: 0 | V28: 0 | W28: 1 | X28: 1 | Y28: 0 | Z28: 1 | AA28: 1 | AB28: 0 | AC28: 1 | AD28: 1 | AE28: 0 | AF28: 1 | AG28: 0 | AH28: 1 | AI28: 1 | AJ28: 0 | AK28: 0 | AL28: 0 | AM28: 0 | AN28: 0 | AO28: 0 | AP28: 0 | AQ28: 0 | AR28: 0 | AS28: 0 | AT28: 0 | AU28: 0 | AV28: 0 | AW28: 0 | AX28: 0 | AY28: 0 | AZ28: 0 | BA28: 0 | BB28: FIM
B30: Data | C30: 0 | D30: 0 | E30: 0 | F30: 0 | G30: 0 | H30: 0 | I30: 0 | J30: 0 | K30: 0 | L30: 0 | M30: 1 | N30: 0 | O30: 0 | P30: 0 | Q30: 1 | R30: 1 | S30: 0 | T30: 1 | U30: 0 | V30: 0 | W30: 1 | X30: 1 | Y30: 0 | Z30: 1 | AA30: 1 | AB30: 0 | AC30: 1 | AD30: 1 | AE30: 0 | AF30: 1 | AG30: 0 | AH30: 1 | AI30: 1 | AJ30: 0 | AK30: 0 | AL30: 0 | AM30: 0 | AN30: 0 | AO30: 0 | AP30: 0 | AQ30: 0 | AR30: 0 | AS30: 0 | AT30: 0 | AU30: 0 | AV30: 0 | AW30: 0 | AX30: 0 | AY30: 0 | AZ30: 0 | BA30: 0 | BB30: FIM
B31: Divisor | M31: 1 | N31: 1 | O31: 0 | P31: 0 | Q31: 0 | R31: 0 | S31: 0 | T31: 0 | U31: 0 | V31: 0 | W31: 0 | X31: 0 | Y31: 0 | Z31: 0 | AA31: 1 | AB31: 0 | AC31: 1 | AD31: FIM
B32: Data XOR Divisor | C32: 0 | D32: 0 | E32: 0 | F32: 0 | G32: 0 | H32: 0 | I32: 0 | J32: 0 | K32: 0 | L32: 0 | M32: 0 | N32: 1 | O32: 0 | P32: 0 | Q32: 1 | R32: 1 | S32: 0 | T32: 1 | U32: 0 | V32: 0 | W32: 1 | X32: 1 | Y32: 0 | Z32: 1 | AA32: 0 | AB32: 0 | AC32: 0 | AD32: 1 | AE32: 0 | AF32: 1 | AG32: 0 | AH32: 1 | AI32: 1 | AJ32: 0 | AK32: 0 | AL32: 0 | AM32: 0 | AN32: 0 | AO32: 0 | AP32: 0 | AQ32: 0 | AR32: 0 | AS32: 0 | AT32: 0 | AU32: 0 | AV32: 0 | AW32: 0 | AX32: 0 | AY32: 0 | AZ32: 0 | BA32: 0 | BB32: FIM
B34: Data | C34: 0 | D34: 0 | E34: 0 | F34: 0 | G34: 0 | H34: 0 | I34: 0 | J34: 0 | K34: 0 | L34: 0 | M34: 0 | N34: 1 | O34: 0 | P34: 0 | Q34: 1 | R34: 1 | S34: 0 | T34: 1 | U34: 0 | V34: 0 | W34: 1 | X34: 1 | Y34: 0 | Z34: 1 | AA34: 0 | AB34: 0 | AC34: 0 | AD34: 1 | AE34: 0 | AF34: 1 | AG34: 0 | AH34: 1 | AI34: 1 | AJ34: 0 | AK34: 0 | AL34: 0 | AM34: 0 | AN34: 0 | AO34: 0 | AP34: 0 | AQ34: 0 | AR34: 0 | AS34: 0 | AT34: 0 | AU34: 0 | AV34: 0 | AW34: 0 | AX34: 0 | AY34: 0 | AZ34: 0 | BA34: 0 | BB34: FIM
B35: Divisor | N35: 1 | O35: 1 | P35: 0 | Q35: 0 | R35: 0 | S35: 0 | T35: 0 | U35: 0 | V35: 0 | W35: 0 | X35: 0 | Y35: 0 | Z35: 0 | AA35: 0 | AB35: 1 | AC35: 0 | AD35: 1 | AE35: FIM
B36: Data XOR Divisor | C36: 0 | D36: 0 | E36: 0 | F36: 0 | G36: 0 | H36: 0 | I36: 0 | J36: 0 | K36: 0 | L36: 0 | M36: 0 | N36: 0 | O36: 1 | P36: 0 | Q36: 1 | R36: 1 | S36: 0 | T36: 1 | U36: 0 | V36: 0 | W36: 1 | X36: 1 | Y36: 0 | Z36: 1 | AA36: 0 | AB36: 1 | AC36: 0 | AD36: 0 | AE36: 0 | AF36: 1 | AG36: 0 | AH36: 1 | AI36: 1 | AJ36: 0 | AK36: 0 | AL36: 0 | AM36: 0 | AN36: 0 | AO36: 0 | AP36: 0 | AQ36: 0 | AR36: 0 | AS36: 0 | AT36: 0 | AU36: 0 | AV36: 0 | AW36: 0 | AX36: 0 | AY36: 0 | AZ36: 0 | BA36: 0 | BB36: FIM
B38: Data | C38: 0 | D38: 0 | E38: 0 | F38: 0 | G38: 0 | H38: 0 | I38: 0 | J38: 0 | K38: 0 | L38: 0 | M38: 0 | N38: 0 | O38: 1 | P38: 0 | Q38: 1 | R38: 1 | S38: 0 | T38: 1 | U38: 0 | V38: 0 | W38: 1 | X38: 1 | Y38: 0 | Z38: 1 | AA38: 0 | AB38: 1 | AC38: 0 | AD38: 0 | AE38: 0 | AF38: 1 | AG38: 0 | AH38: 1 | AI38: 1 | AJ38: 0 | AK38: 0 | AL38: 0 | AM38: 0 | AN38: 0 | AO38: 0 | AP38: 0 | AQ38: 0 | AR38: 0 | AS38: 0 | AT38: 0 | AU38: 0 | AV38: 0 | AW38: 0 | AX38: 0 | AY38: 0 | AZ38: 0 | BA38: 0 | BB38: FIM
B39: Divisor | O39: 1 | P39: 1 | Q39: 0 | R39: 0 | S39: 0 | T39: 0 | U39: 0 | V39: 0 | W39: 0 | X39: 0 | Y39: 0 | Z39: 0 | AA39: 0 | AB39: 0 | AC39: 1 | AD39: 0 | AE39: 1 | AF39: FIM
B40: Data XOR Divisor | C40: 0 | D40: 0 | E40: 0 | F40: 0 | G40: 0 | H40: 0 | I40: 0 | J40: 0 | K40: 0 | L40: 0 | M40: 0 | N40: 0 | O40: 0 | P40: 1 | Q40: 1 | R40: 1 | S40: 0 | T40: 1 | U40: 0 | V40: 0 | W40: 1 | X40: 1 | Y40: 0 | Z40: 1 | AA40: 0 | AB40: 1 | AC40: 1 | AD40: 0 | AE40: 1 | AF40: 1 | AG40: 0 | AH40: 1 | AI40: 1 | AJ40: 0 | AK40: 0 | AL40: 0 | AM40: 0 | AN40: 0 | AO40: 0 | AP40: 0 | AQ40: 0 | AR40: 0 | AS40: 0 | AT40: 0 | AU40: 0 | AV40: 0 | AW40: 0 | AX40: 0 | AY40: 0 | AZ40: 0 | BA40: 0 | BB40: FIM
B42: Data | C42: 0 | D42: 0 | E42: 0 | F42: 0 | G42: 0 | H42: 0 | I42: 0 | J42: 0 | K42: 0 | L42: 0 | M42: 0 | N42: 0 | O42: 0 | P42: 1 | Q42: 1 | R42: 1 | S42: 0 | T42: 1 | U42: 0 | V42: 0 | W42: 1 | X42: 1 | Y42: 0 | Z42: 1 | AA42: 0 | AB42: 1 | AC42: 1 | AD42: 0 | AE42: 1 | AF42: 1 | AG42: 0 | AH42: 1 | AI42: 1 | AJ42: 0 | AK42: 0 | AL42: 0 | AM42: 0 | AN42: 0 | AO42: 0 | AP42: 0 | AQ42: 0 | AR42: 0 | AS42: 0 | AT42: 0 | AU42: 0 | AV42: 0 | AW42: 0 | AX42: 0 | AY42: 0 | AZ42: 0 | BA42: 0 | BB42: FIM
B43: Divisor | P43: 1 | Q43: 1 | R43: 0 | S43: 0 | T43: 0 | U43: 0 | V43: 0 | W43: 0 | X43: 0 | Y43: 0 | Z43: 0 | AA43: 0 | AB43: 0 | AC43: 0 | AD43: 1 | AE43: 0 | AF43: 1 | AG43: FIM
B44: Data XOR Divisor | C44: 0 | D44: 0 | E44: 0 | F44: 0 | G44: 0 | H44: 0 | I44: 0 | J44: 0 | K44: 0 | L44: 0 | M44: 0 | N44: 0 | O44: 0 | P44: 0 | Q44: 0 | R44: 1 | S44: 0 | T44: 1 | U44: 0 | V44: 0 | W44: 1 | X44: 1 | Y44: 0 | Z44: 1 | AA44: 0 | AB44: 1 | AC44: 1 | AD44: 1 | AE44: 1 | AF44: 0 | AG44: 0 | AH44: 1 | AI44: 1 | AJ44: 0 | AK44: 0 | AL44: 0 | AM44: 0 | AN44: 0 | AO44: 0 | AP44: 0 | AQ44: 0 | AR44: 0 | AS44: 0 | AT44: 0 | AU44: 0 | AV44: 0 | AW44: 0 | AX44: 0 | AY44: 0 | AZ44: 0 | BA44: 0 | BB44: FIM
B46: Data | C46: 0 | D46: 0 | E46: 0 | F46: 0 | G46: 0 | H46: 0 | I46: 0 | J46: 0 | K46: 0 | L46: 0 | M46: 0 | N46: 0 | O46: 0 | P46: 0 | Q46: 0 | R46: 1 | S46: 0 | T46: 1 | U46: 0 | V46: 0 | W46: 1 | X46: 1 | Y46: 0 | Z46: 1 | AA46: 0 | AB46: 1 | AC46: 1 | AD46: 1 | AE46: 1 | AF46: 0 | AG46: 0 | AH46: 1 | AI46: 1 | AJ46: 0 | AK46: 0 | AL46: 0 | AM46: 0 | AN46: 0 | AO46: 0 | AP46: 0 | AQ46: 0 | AR46: 0 | AS46: 0 | AT46: 0 | AU46: 0 | AV46: 0 | AW46: 0 | AX46: 0 | AY46: 0 | AZ46: 0 | BA46: 0 | BB46: FIM
B47: Divisor | R47: 1 | S47: 1 | T47: 0 | U47: 0 | V47: 0 | W47: 0 | X47: 0 | Y47: 0 | Z47: 0 | AA47: 0 | AB47: 0 | AC47: 0 | AD47: 0 | AE47: 0 | AF47: 1 | AG47: 0 | AH47: 1 | AI47: FIM
B48: Data XOR Divisor | C48: 0 | D48: 0 | E48: 0 | F48: 0 | G48: 0 | H48: 0 | I48: 0 | J48: 0 | K48: 0 | L48: 0 | M48: 0 | N48: 0 | O48: 0 | P48: 0 | Q48: 0 | R48: 0 | S48: 1 | T48: 1 | U48: 0 | V48: 0 | W48: 1 | X48: 1 | Y48: 0 | Z48: 1 | AA48: 0 | AB48: 1 | AC48: 1 | AD48: 1 | AE48: 1 | AF48: 1 | AG48: 0 | AH48: 0 | AI48: 1 | AJ48: 0 | AK48: 0 | AL48: 0 | AM48: 0 | AN48: 0 | AO48: 0 | AP48: 0 | AQ48: 0 | AR48: 0 | AS48: 0 | AT48: 0 | AU48: 0 | AV48: 0 | AW48: 0 | AX48: 0 | AY48: 0 | AZ48: 0 | BA48: 0 | BB48: FIM
B50: Data | C50: 0 | D50: 0 | E50: 0 | F50: 0 | G50: 0 | H50: 0 | I50: 0 | J50: 0 | K50: 0 | L50: 0 | M50: 0 | N50: 0 | O50: 0 | P50: 0 | Q50: 0 | R50: 0 | S50: 1 | T50: 1 | U50: 0 | V50: 0 | W50: 1 | X50: 1 | Y50: 0 | Z50: 1 | AA50: 0 | AB50: 1 | AC50: 1 | AD50: 1 | AE50: 1 | AF50: 1 | AG50: 0 | AH50: 0 | AI50: 1 | AJ50: 0 | AK50: 0 | AL50: 0 | AM50: 0 | AN50: 0 | AO50: 0 | AP50: 0 | AQ50: 0 | AR50: 0 | AS50: 0 | AT50: 0 | AU50: 0 | AV50: 0 | AW50: 0 | AX50: 0 | AY50: 0 | AZ50: 0 | BA50: 0 | BB50: FIM
B51: Divisor | S51: 1 | T51: 1 | U51: 0 | V51: 0 | W51: 0 | X51: 0 | Y51: 0 | Z51: 0 | AA51: 0 | AB51: 0 | AC51: 0 | AD51: 0 | AE51: 0 | AF51: 0 | AG51: 1 | AH51: 0 | AI51: 1 | AJ51: FIM
B52: Data XOR Divisor | C52: 0 | D52: 0 | E52: 0 | F52: 0 | G52: 0 | H52: 0 | I52: 0 | J52: 0 | K52: 0 | L52: 0 | M52: 0 | N52: 0 | O52: 0 | P52: 0 | Q52: 0 | R52: 0 | S52: 0 | T52: 0 | U52: 0 | V52: 0 | W52: 1 | X52: 1 | Y52: 0 | Z52: 1 | AA52: 0 | AB52: 1 | AC52: 1 | AD52: 1 | AE52: 1 | AF52: 1 | AG52: 1 | AH52: 0 | AI52: 0 | AJ52: 0 | AK52: 0 | AL52: 0 | AM52: 0 | AN52: 0 | AO52: 0 | AP52: 0 | AQ52: 0 | AR52: 0 | AS52: 0 | AT52: 0 | AU52: 0 | AV52: 0 | AW52: 0 | AX52: 0 | AY52: 0 | AZ52: 0 | BA52: 0 | BB52: FIM
B54: Data | C54: 0 | D54: 0 | E54: 0 | F54: 0 | G54: 0 | H54: 0 | I54: 0 | J54: 0 | K54: 0 | L54: 0 | M54: 0 | N54: 0 | O54: 0 | P54: 0 | Q54: 0 | R54: 0 | S54: 0 | T54: 0 | U54: 0 | V54: 0 | W54: 1 | X54: 1 | Y54: 0 | Z54: 1 | AA54: 0 | AB54: 1 | AC54: 1 | AD54: 1 | AE54: 1 | AF54: 1 | AG54: 1 | AH54: 0 | AI54: 0 | AJ54: 0 | AK54: 0 | AL54: 0 | AM54: 0 | AN54: 0 | AO54: 0 | AP54: 0 | AQ54: 0 | AR54: 0 | AS54: 0 | AT54: 0 | AU54: 0 | AV54: 0 | AW54: 0 | AX54: 0 | AY54: 0 | AZ54: 0 | BA54: 0 | BB54: FIM
B55: Divisor | W55: 1 | X55: 1 | Y55: 0 | Z55: 0 | AA55: 0 | AB55: 0 | AC55: 0 | AD55: 0 | AE55: 0 | AF55: 0 | AG55: 0 | AH55: 0 | AI55: 0 | AJ55: 0 | AK55: 1 | AL55: 0 | AM55: 1 | AN55: FIM
B56: Data XOR Divisor | C56: 0 | D56: 0 | E56: 0 | F56: 0 | G56: 0 | H56: 0 | I56: 0 | J56: 0 | K56: 0 | L56: 0 | M56: 0 | N56: 0 | O56: 0 | P56: 0 | Q56: 0 | R56: 0 | S56: 0 | T56: 0 | U56: 0 | V56: 0 | W56: 0 | X56: 0 | Y56: 0 | Z56: 1 | AA56: 0 | AB56: 1 | AC56: 1 | AD56: 1 | AE56: 1 | AF56: 1 | AG56: 1 | AH56: 0 | AI56: 0 | AJ56: 0 | AK56: 1 | AL56: 0 | AM56: 1 | AN56: 0 | AO56: 0 | AP56: 0 | AQ56: 0 | AR56: 0 | AS56: 0 | AT56: 0 | AU56: 0 | AV56: 0 | AW56: 0 | AX56: 0 | AY56: 0 | AZ56: 0 | BA56: 0 | BB56: FIM
B58: Data | C58: 0 | D58: 0 | E58: 0 | F58: 0 | G58: 0 | H58: 0 | I58: 0 | J58: 0 | K58: 0 | L58: 0 | M58: 0 | N58: 0 | O58: 0 | P58: 0 | Q58: 0 | R58: 0 | S58: 0 | T58: 0 | U58: 0 | V58: 0 | W58: 0 | X58: 0 | Y58: 0 | Z58: 1 | AA58: 0 | AB58: 1 | AC58: 1 | AD58: 1 | AE58: 1 | AF58: 1 | AG58: 1 | AH58: 0 | AI58: 0 | AJ58: 0 | AK58: 1 | AL58: 0 | AM58: 1 | AN58: 0 | AO58: 0 | AP58: 0 | AQ58: 0 | AR58: 0 | AS58: 0 | AT58: 0 | AU58: 0 | AV58: 0 | AW58: 0 | AX58: 0 | AY58: 0 | AZ58: 0 | BA58: 0 | BB58: FIM
B59: Divisor | Z59: 1 | AA59: 1 | AB59: 0 | AC59: 0 | AD59: 0 | AE59: 0 | AF59: 0 | AG59: 0 | AH59: 0 | AI59: 0 | AJ59: 0 | AK59: 0 | AL59: 0 | AM59: 0 | AN59: 1 | AO59: 0 | AP59: 1 | AQ59: FIM
B60: Data XOR Divisor | C60: 0 | D60: 0 | E60: 0 | F60: 0 | G60: 0 | H60: 0 | I60: 0 | J60: 0 | K60: 0 | L60: 0 | M60: 0 | N60: 0 | O60: 0 | P60: 0 | Q60: 0 | R60: 0 | S60: 0 | T60: 0 | U60: 0 | V60: 0 | W60: 0 | X60: 0 | Y60: 0 | Z60: 0 | AA60: 1 | AB60: 1 | AC60: 1 | AD60: 1 | AE60: 1 | AF60: 1 | AG60: 1 | AH60: 0 | AI60: 0 | AJ60: 0 | AK60: 1 | AL60: 0 | AM60: 1 | AN60: 1 | AO60: 0 | AP60: 1 | AQ60: 0 | AR60: 0 | AS60: 0 | AT60: 0 | AU60: 0 | AV60: 0 | AW60: 0 | AX60: 0 | AY60: 0 | AZ60: 0 | BA60: 0 | BB60: FIM
B62: Data | C62: 0 | D62: 0 | E62: 0 | F62: 0 | G62: 0 | H62: 0 | I62: 0 | J62: 0 | K62: 0 | L62: 0 | M62: 0 | N62: 0 | O62: 0 | P62: 0 | Q62: 0 | R62: 0 | S62: 0 | T62: 0 | U62: 0 | V62: 0 | W62: 0 | X62: 0 | Y62: 0 | Z62: 0 | AA62: 1 | AB62: 1 | AC62: 1 | AD62: 1 | AE62: 1 | AF62: 1 | AG62: 1 | AH62: 0 | AI62: 0 | AJ62: 0 | AK62: 1 | AL62: 0 | AM62: 1 | AN62: 1 | AO62: 0 | AP62: 1 | AQ62: 0 | AR62: 0 | AS62: 0 | AT62: 0 | AU62: 0 | AV62: 0 | AW62: 0 | AX62: 0 | AY62: 0 | AZ62: 0 | BA62: 0 | BB62: FIM
B63: Divisor | AA63: 1 | AB63: 1 | AC63: 0 | AD63: 0 | AE63: 0 | AF63: 0 | AG63: 0 | AH63: 0 | AI63: 0 | AJ63: 0 | AK63: 0 | AL63: 0 | AM63: 0 | AN63: 0 | AO63: 1 | AP63: 0 | AQ63: 1 | AR63: FIM
B64: Data XOR Divisor | C64: 0 | D64: 0 | E64: 0 | F64: 0 | G64: 0 | H64: 0 | I64: 0 | J64: 0 | K64: 0 | L64: 0 | M64: 0 | N64: 0 | O64: 0 | P64: 0 | Q64: 0 | R64: 0 | S64: 0 | T64: 0 | U64: 0 | V64: 0 | W64: 0 | X64: 0 | Y64: 0 | Z64: 0 | AA64: 0 | AB64: 0 | AC64: 1 | AD64: 1 | AE64: 1 | AF64: 1 | AG64: 1 | AH64: 0 | AI64: 0 | AJ64: 0 | AK64: 1 | AL64: 0 | AM64: 1 | AN64: 1 | AO64: 1 | AP64: 1 | AQ64: 1 | AR64: 0 | AS64: 0 | AT64: 0 | AU64: 0 | AV64: 0 | AW64: 0 | AX64: 0 | AY64: 0 | AZ64: 0 | BA64: 0 | BB64: FIM
B66: Data | C66: 0 | D66: 0 | E66: 0 | F66: 0 | G66: 0 | H66: 0 | I66: 0 | J66: 0 | K66: 0 | L66: 0 | M66: 0 | N66: 0 | O66: 0 | P66: 0 | Q66: 0 | R66: 0 | S66: 0 | T66: 0 | U66: 0 | V66: 0 | W66: 0 | X66: 0 | Y66: 0 | Z66: 0 | AA66: 0 | AB66: 0 | AC66: 1 | AD66: 1 | AE66: 1 | AF66: 1 | AG66: 1 | AH66: 0 | AI66: 0 | AJ66: 0 | AK66: 1 | AL66: 0 | AM66: 1 | AN66: 1 | AO66: 1 | AP66: 1 | AQ66: 1 | AR66: 0 | AS66: 0 | AT66: 0 | AU66: 0 | AV66: 0 | AW66: 0 | AX66: 0 | AY66: 0 | AZ66: 0 | BA66: 0 | BB66: FIM
B67: Divisor | AC67: 1 | AD67: 1 | AE67: 0 | AF67: 0 | AG67: 0 | AH67: 0 | AI67: 0 | AJ67: 0 | AK67: 0 | AL67: 0 | AM67: 0 | AN67: 0 | AO67: 0 | AP67: 0 | AQ67: 1 | AR67: 0 | AS67: 1 | AT67: FIM
B68: Data XOR Divisor | C68: 0 | D68: 0 | E68: 0 | F68: 0 | G68: 0 | H68: 0 | I68: 0 | J68: 0 | K68: 0 | L68: 0 | M68: 0 | N68: 0 | O68: 0 | P68: 0 | Q68: 0 | R68: 0 | S68: 0 | T68: 0 | U68: 0 | V68: 0 | W68: 0 | X68: 0 | Y68: 0 | Z68: 0 | AA68: 0 | AB68: 0 | AC68: 0 | AD68: 0 | AE68: 1 | AF68: 1 | AG68: 1 | AH68: 0 | AI68: 0 | AJ68: 0 | AK68: 1 | AL68: 0 | AM68: 1 | AN68: 1 | AO68: 1 | AP68: 1 | AQ68: 0 | AR68: 0 | AS68: 1 | AT68: 0 | AU68: 0 | AV68: 0 | AW68: 0 | AX68: 0 | AY68: 0 | AZ68: 0 | BA68: 0 | BB68: FIM
B70: Data | C70: 0 | D70: 0 | E70: 0 | F70: 0 | G70: 0 | H70: 0 | I70: 0 | J70: 0 | K70: 0 | L70: 0 | M70: 0 | N70: 0 | O70: 0 | P70: 0 | Q70: 0 | R70: 0 | S70: 0 | T70: 0 | U70: 0 | V70: 0 | W70: 0 | X70: 0 | Y70: 0 | Z70: 0 | AA70: 0 | AB70: 0 | AC70: 0 | AD70: 0 | AE70: 1 | AF70: 1 | AG70: 1 | AH70: 0 | AI70: 0 | AJ70: 0 | AK70: 1 | AL70: 0 | AM70: 1 | AN70: 1 | AO70: 1 | AP70: 1 | AQ70: 0 | AR70: 0 | AS70: 1 | AT70: 0 | AU70: 0 | AV70: 0 | AW70: 0 | AX70: 0 | AY70: 0 | AZ70: 0 | BA70: 0 | BB70: FIM
B71: Divisor | AE71: 1 | AF71: 1 | AG71: 0 | AH71: 0 | AI71: 0 | AJ71: 0 | AK71: 0 | AL71: 0 | AM71: 0 | AN71: 0 | AO71: 0 | AP71: 0 | AQ71: 0 | AR71: 0 | AS71: 1 | AT71: 0 | AU71: 1 | AV71: FIM
B72: Data XOR Divisor | C72: 0 | D72: 0 | E72: 0 | F72: 0 | G72: 0 | H72: 0 | I72: 0 | J72: 0 | K72: 0 | L72: 0 | M72: 0 | N72: 0 | O72: 0 | P72: 0 | Q72: 0 | R72: 0 | S72: 0 | T72: 0 | U72: 0 | V72: 0 | W72: 0 | X72: 0 | Y72: 0 | Z72: 0 | AA72: 0 | AB72: 0 | AC72: 0 | AD72: 0 | AE72: 0 | AF72: 0 | AG72: 1 | AH72: 0 | AI72: 0 | AJ72: 0 | AK72: 1 | AL72: 0 | AM72: 1 | AN72: 1 | AO72: 1 | AP72: 1 | AQ72: 0 | AR72: 0 | AS72: 0 | AT72: 0 | AU72: 1 | AV72: 0 | AW72: 0 | AX72: 0 | AY72: 0 | AZ72: 0 | BA72: 0 | BB72: FIM
B74: Data | C74: 0 | D74: 0 | E74: 0 | F74: 0 | G74: 0 | H74: 0 | I74: 0 | J74: 0 | K74: 0 | L74: 0 | M74: 0 | N74: 0 | O74: 0 | P74: 0 | Q74: 0 | R74: 0 | S74: 0 | T74: 0 | U74: 0 | V74: 0 | W74: 0 | X74: 0 | Y74: 0 | Z74: 0 | AA74: 0 | AB74: 0 | AC74: 0 | AD74: 0 | AE74: 0 | AF74: 0 | AG74: 1 | AH74: 0 | AI74: 0 | AJ74: 0 | AK74: 1 | AL74: 0 | AM74: 1 | AN74: 1 | AO74: 1 | AP74: 1 | AQ74: 0 | AR74: 0 | AS74: 0 | AT74: 0 | AU74: 1 | AV74: 0 | AW74: 0 | AX74: 0 | AY74: 0 | AZ74: 0 | BA74: 0 | BB74: FIM
B75: Divisor | AG75: 1 | AH75: 1 | AI75: 0 | AJ75: 0 | AK75: 0 | AL75: 0 | AM75: 0 | AN75: 0 | AO75: 0 | AP75: 0 | AQ75: 0 | AR75: 0 | AS75: 0 | AT75: 0 | AU75: 1 | AV75: 0 | AW75: 1 | AX75: FIM
B76: Data XOR Divisor | C76: 0 | D76: 0 | E76: 0 | F76: 0 | G76: 0 | H76: 0 | I76: 0 | J76: 0 | K76: 0 | L76: 0 | M76: 0 | N76: 0 | O76: 0 | P76: 0 | Q76: 0 | R76: 0 | S76: 0 | T76: 0 | U76: 0 | V76: 0 | W76: 0 | X76: 0 | Y76: 0 | Z76: 0 | AA76: 0 | AB76: 0 | AC76: 0 | AD76: 0 | AE76: 0 | AF76: 0 | AG76: 0 | AH76: 1 | AI76: 0 | AJ76: 0 | AK76: 1 | AL76: 0 | AM76: 1 | AN76: 1 | AO76: 1 | AP76: 1 | AQ76: 0 | AR76: 0 | AS76: 0 | AT76: 0 | AU76: 0 | AV76: 0 | AW76: 1 | AX76: 0 | AY76: 0 | AZ76: 0 | BA76: 0 | BB76: FIM
B78: Data | C78: 0 | D78: 0 | E78: 0 | F78: 0 | G78: 0 | H78: 0 | I78: 0 | J78: 0 | K78: 0 | L78: 0 | M78: 0 | N78: 0 | O78: 0 | P78: 0 | Q78: 0 | R78: 0 | S78: 0 | T78: 0 | U78: 0 | V78: 0 | W78: 0 | X78: 0 | Y78: 0 | Z78: 0 | AA78: 0 | AB78: 0 | AC78: 0 | AD78: 0 | AE78: 0 | AF78: 0 | AG78: 0 | AH78: 1 | AI78: 0 | AJ78: 0 | AK78: 1 | AL78: 0 | AM78: 1 | AN78: 1 | AO78: 1 | AP78: 1 | AQ78: 0 | AR78: 0 | AS78: 0 | AT78: 0 | AU78: 0 | AV78: 0 | AW78: 1 | AX78: 0 | AY78: 0 | AZ78: 0 | BA78: 0 | BB78: FIM
B79: Divisor | AH79: 1 | AI79: 1 | AJ79: 0 | AK79: 0 | AL79: 0 | AM79: 0 | AN79: 0 | AO79: 0 | AP79: 0 | AQ79: 0 | AR79: 0 | AS79: 0 | AT79: 0 | AU79: 0 | AV79: 1 | AW79: 0 | AX79: 1 | AY79: FIM
B80: Data XOR Divisor | C80: 0 | D80: 0 | E80: 0 | F80: 0 | G80: 0 | H80: 0 | I80: 0 | J80: 0 | K80: 0 | L80: 0 | M80: 0 | N80: 0 | O80: 0 | P80: 0 | Q80: 0 | R80: 0 | S80: 0 | T80: 0 | U80: 0 | V80: 0 | W80: 0 | X80: 0 | Y80: 0 | Z80: 0 | AA80: 0 | AB80: 0 | AC80: 0 | AD80: 0 | AE80: 0 | AF80: 0 | AG80: 0 | AH80: 0 | AI80: 1 | AJ80: 0 | AK80: 1 | AL80: 0 | AM80: 1 | AN80: 1 | AO80: 1 | AP80: 1 | AQ80: 0 | AR80: 0 | AS80: 0 | AT80: 0 | AU80: 0 | AV80: 1 | AW80: 1 | AX80: 1 | AY80: 0 | AZ80: 0 | BA80: 0 | BB80: FIM
B82: Data | C82: 0 | D82: 0 | E82: 0 | F82: 0 | G82: 0 | H82: 0 | I82: 0 | J82: 0 | K82: 0 | L82: 0 | M82: 0 | N82: 0 | O82: 0 | P82: 0 | Q82: 0 | R82: 0 | S82: 0 | T82: 0 | U82: 0 | V82: 0 | W82: 0 | X82: 0 | Y82: 0 | Z82: 0 | AA82: 0 | AB82: 0 | AC82: 0 | AD82: 0 | AE82: 0 | AF82: 0 | AG82: 0 | AH82: 0 | AI82: 1 | AJ82: 0 | AK82: 1 | AL82: 0 | AM82: 1 | AN82: 1 | AO82: 1 | AP82: 1 | AQ82: 0 | AR82: 0 | AS82: 0 | AT82: 0 | AU82: 0 | AV82: 1 | AW82: 1 | AX82: 1 | AY82: 0 | AZ82: 0 | BA82: 0 | BB82: FIM
B83: Divisor | AI83: 1 | AJ83: 1 | AK83: 0 | AL83: 0 | AM83: 0 | AN83: 0 | AO83: 0 | AP83: 0 | AQ83: 0 | AR83: 0 | AS83: 0 | AT83: 0 | AU83: 0 | AV83: 0 | AW83: 1 | AX83: 0 | AY83: 1 | AZ83: FIM
B84: Data XOR Divisor | C84: 0 | D84: 0 | E84: 0 | F84: 0 | G84: 0 | H84: 0 | I84: 0 | J84: 0 | K84: 0 | L84: 0 | M84: 0 | N84: 0 | O84: 0 | P84: 0 | Q84: 0 | R84: 0 | S84: 0 | T84: 0 | U84: 0 | V84: 0 | W84: 0 | X84: 0 | Y84: 0 | Z84: 0 | AA84: 0 | AB84: 0 | AC84: 0 | AD84: 0 | AE84: 0 | AF84: 0 | AG84: 0 | AH84: 0 | AI84: 0 | AJ84: 1 | AK84: 1 | AL84: 0 | AM84: 1 | AN84: 1 | AO84: 1 | AP84: 1 | AQ84: 0 | AR84: 0 | AS84: 0 | AT84: 0 | AU84: 0 | AV84: 1 | AW84: 0 | AX84: 1 | AY84: 1 | AZ84: 0 | BA84: 0 | BB84: FIM
B86: Data | C86: 0 | D86: 0 | E86: 0 | F86: 0 | G86: 0 | H86: 0 | I86: 0 | J86: 0 | K86: 0 | L86: 0 | M86: 0 | N86: 0 | O86: 0 | P86: 0 | Q86: 0 | R86: 0 | S86: 0 | T86: 0 | U86: 0 | V86: 0 | W86: 0 | X86: 0 | Y86: 0 | Z86: 0 | AA86: 0 | AB86: 0 | AC86: 0 | AD86: 0 | AE86: 0 | AF86: 0 | AG86: 0 | AH86: 0 | AI86: 0 | AJ86: 1 | AK86: 1 | AL86: 0 | AM86: 1 | AN86: 1 | AO86: 1 | AP86: 1 | AQ86: 0 | AR86: 0 | AS86: 0 | AT86: 0 | AU86: 0 | AV86: 1 | AW86: 0 | AX86: 1 | AY86: 1 | AZ86: 0 | BA86: 0 | BB86: FIM
B87: Divisor | AJ87: 1 | AK87: 1 | AL87: 0 | AM87: 0 | AN87: 0 | AO87: 0 | AP87: 0 | AQ87: 0 | AR87: 0 | AS87: 0 | AT87: 0 | AU87: 0 | AV87: 0 | AW87: 0 | AX87: 1 | AY87: 0 | AZ87: 1 | BA87: FIM
B88: Data XOR Divisor | C88: 0 | D88: 0 | E88: 0 | F88: 0 | G88: 0 | H88: 0 | I88: 0 | J88: 0 | K88: 0 | L88: 0 | M88: 0 | N88: 0 | O88: 0 | P88: 0 | Q88: 0 | R88: 0 | S88: 0 | T88: 0 | U88: 0 | V88: 0 | W88: 0 | X88: 0 | Y88: 0 | Z88: 0 | AA88: 0 | AB88: 0 | AC88: 0 | AD88: 0 | AE88: 0 | AF88: 0 | AG88: 0 | AH88: 0 | AI88: 0 | AJ88: 0 | AK88: 0 | AL88: 0 | AM88: 1 | AN88: 1 | AO88: 1 | AP88: 1 | AQ88: 0 | AR88: 0 | AS88: 0 | AT88: 0 | AU88: 0 | AV88: 1 | AW88: 0 | AX88: 0 | AY88: 1 | AZ88: 1 | BA88: 0 | BB88: FIM
B90: Data | C90: 0 | D90: 0 | E90: 0 | F90: 0 | G90: 0 | H90: 0 | I90: 0 | J90: 0 | K90: 0 | L90: 0 | M90: 0 | N90: 0 | O90: 0 | P90: 0 | Q90: 0 | R90: 0 | S90: 0 | T90: 0 | U90: 0 | V90: 0 | W90: 0 | X90: 0 | Y90: 0 | Z90: 0 | AA90: 0 | AB90: 0 | AC90: 0 | AD90: 0 | AE90: 0 | AF90: 0 | AG90: 0 | AH90: 0 | AI90: 0 | AJ90: 0 | AK90: 0 | AL90: 0 | AM90: 1 | AN90: 1 | AO90: 1 | AP90: 1 | AQ90: 0 | AR90: 0 | AS90: 0 | AT90: 0 | AU90: 0 | AV90: 1 | AW90: 0 | AX90: 0 | AY90: 1 | AZ90: 1 | BA90: 0 | BB90: FIM

Sheet Aceitação_CRC
P2: CRC: 0000000000000000
P3: Confirmado!
C5: 1 | D5: 2 | E5: 3 | F5: 4 | G5: 5 | H5: 6 | I5: 7 | J5: 8 | K5: 9 | L5: 10 | M5: 11 | N5: 12 | O5: 13 | P5: 14 | Q5: 15 | R5: 16 | S5: 17
B6: Data | C6: 1 | D6: 0 | E6: 0 | F6: 0 | G6: 0 | H6: 0 | I6: 1 | J6: 0 | K6: 0 | L6: 0 | M6: 1 | N6: 0 | O6: 0 | P6: 0 | Q6: 0 | R6: 0 | S6: 0 | T6: 1 | U6: 0 | V6: 0 | W6: 0 | X6: 0 | Y6: 0 | Z6: 1 | AA6: 1 | AB6: 0 | AC6: 1 | AD6: 1 | AE6: 0 | AF6: 1 | AG6: 0 | AH6: 1 | AI6: 1 | AJ6: 0 | AK6: 0 | AL6: 0 | AM6: 1 | AN6: 1 | AO6: 1 | AP6: 1 | AQ6: 0 | AR6: 0 | AS6: 0 | AT6: 0 | AU6: 0 | AV6: 1 | AW6: 0 | AX6: 0 | AY6: 1 | AZ6: 1 | BA6: 0 | BB6: FIM
B7: Divisor | C7: 1 | D7: 1 | E7: 0 | F7: 0 | G7: 0 | H7: 0 | I7: 0 | J7: 0 | K7: 0 | L7: 0 | M7: 0 | N7: 0 | O7: 0 | P7: 0 | Q7: 1 | R7: 0 | S7: 1 | T7: FIM
B8: Data XOR Divisor | C8: 0 | D8: 1 | E8: 0 | F8: 0 | G8: 0 | H8: 0 | I8: 1 | J8: 0 | K8: 0 | L8: 0 | M8: 1 | N8: 0 | O8: 0 | P8: 0 | Q8: 1 | R8: 0 | S8: 1 | T8: 1 | U8: 0 | V8: 0 | W8: 0 | X8: 0 | Y8: 0 | Z8: 1 | AA8: 1 | AB8: 0 | AC8: 1 | AD8: 1 | AE8: 0 | AF8: 1 | AG8: 0 | AH8: 1 | AI8: 1 | AJ8: 0 | AK8: 0 | AL8: 0 | AM8: 1 | AN8: 1 | AO8: 1 | AP8: 1 | AQ8: 0 | AR8: 0 | AS8: 0 | AT8: 0 | AU8: 0 | AV8: 1 | AW8: 0 | AX8: 0 | AY8: 1 | AZ8: 1 | BA8: 0 | BB8: FIM
B10: Data | C10: 0 | D10: 1 | E10: 0 | F10: 0 | G10: 0 | H10: 0 | I10: 1 | J10: 0 | K10: 0 | L10: 0 | M10: 1 | N10: 0 | O10: 0 | P10: 0 | Q10: 1 | R10: 0 | S10: 1 | T10: 1 | U10: 0 | V10: 0 | W10: 0 | X10: 0 | Y10: 0 | Z10: 1 | AA10: 1 | AB10: 0 | AC10: 1 | AD10: 1 | AE10: 0 | AF10: 1 | AG10: 0 | AH10: 1 | AI10: 1 | AJ10: 0 | AK10: 0 | AL10: 0 | AM10: 1 | AN10: 1 | AO10: 1 | AP10: 1 | AQ10: 0 | AR10: 0 | AS10: 0 | AT10: 0 | AU10: 0 | AV10: 1 | AW10: 0 | AX10: 0 | AY10: 1 | AZ10: 1 | BA10: 0 | BB10: FIM
B11: Divisor | D11: 1 | E11: 1 | F11: 0 | G11: 0 | H11: 0 | I11: 0 | J11: 0 | K11: 0 | L11: 0 | M11: 0 | N11: 0 | O11: 0 | P11: 0 | Q11: 0 | R11: 1 | S11: 0 | T11: 1 | U11: FIM
B12: Data XOR Divisor | C12: 0 | D12: 0 | E12: 1 | F12: 0 | G12: 0 | H12: 0 | I12: 1 | J12: 0 | K12: 0 | L12: 0 | M12: 1 | N12: 0 | O12: 0 | P12: 0 | Q12: 1 | R12: 1 | S12: 1 | T12: 0 | U12: 0 | V12: 0 | W12: 0 | X12: 0 | Y12: 0 | Z12: 1 | AA12: 1 | AB12: 0 | AC12: 1 | AD12: 1 | AE12: 0 | AF12: 1 | AG12: 0 | AH12: 1 | AI12: 1 | AJ12: 0 | AK12: 0 | AL12: 0 | AM12: 1 | AN12: 1 | AO12: 1 | AP12: 1 | AQ12: 0 | AR12: 0 | AS12: 0 | AT12: 0 | AU12: 0 | AV12: 1 | AW12: 0 | AX12: 0 | AY12: 1 | AZ12: 1 | BA12: 0 | BB12: FIM
B14: Data | C14: 0 | D14: 0 | E14: 1 | F14: 0 | G14: 0 | H14: 0 | I14: 1 | J14: 0 | K14: 0 | L14: 0 | M14: 1 | N14: 0 | O14: 0 | P14: 0 | Q14: 1 | R14: 1 | S14: 1 | T14: 0 | U14: 0 | V14: 0 | W14: 0 | X14: 0 | Y14: 0 | Z14: 1 | AA14: 1 | AB14: 0 | AC14: 1 | AD14: 1 | AE14: 0 | AF14: 1 | AG14: 0 | AH14: 1 | AI14: 1 | AJ14: 0 | AK14: 0 | AL14: 0 | AM14: 1 | AN14: 1 | AO14: 1 | AP14: 1 | AQ14: 0 | AR14: 0 | AS14: 0 | AT14: 0 | AU14: 0 | AV14: 1 | AW14: 0 | AX14: 0 | AY14: 1 | AZ14: 1 | BA14: 0 | BB14: FIM
B15: Divisor | E15: 1 | F15: 1 | G15: 0 | H15: 0 | I15: 0 | J15: 0 | K15: 0 | L15: 0 | M15: 0 | N15: 0 | O15: 0 | P15: 0 | Q15: 0 | R15: 0 | S15: 1 | T15: 0 | U15: 1 | V15: FIM
B16: Data XOR Divisor | C16: 0 | D16: 0 | E16: 0 | F16: 1 | G16: 0 | H16: 0 | I16: 1 | J16: 0 | K16: 0 | L16: 0 | M16: 1 | N16: 0 | O16: 0 | P16: 0 | Q16: 1 | R16: 1 | S16: 0 | T16: 0 | U16: 1 | V16: 0 | W16: 0 | X16: 0 | Y16: 0 | Z16: 1 | AA16: 1 | AB16: 0 | AC16: 1 | AD16: 1 | AE16: 0 | AF16: 1 | AG16: 0 | AH16: 1 | AI16: 1 | AJ16: 0 | AK16: 0 | AL16: 0 | AM16: 1 | AN16: 1 | AO16: 1 | AP16: 1 | AQ16: 0 | AR16: 0 | AS16: 0 | AT16: 0 | AU16: 0 | AV16: 1 | AW16: 0 | AX16: 0 | AY16: 1 | AZ16: 1 | BA16: 0 | BB16: FIM
B18: Data | C18: 0 | D18: 0 | E18: 0 | F18: 1 | G18: 0 | H18: 0 | I18: 1 | J18: 0 | K18: 0 | L18: 0 | M18: 1 | N18: 0 | O18: 0 | P18: 0 | Q18: 1 | R18: 1 | S18: 0 | T18: 0 | U18: 1 | V18: 0 | W18: 0 | X18: 0 | Y18: 0 | Z18: 1 | AA18: 1 | AB18: 0 | AC18: 1 | AD18: 1 | AE18: 0 | AF18: 1 | AG18: 0 | AH18: 1 | AI18: 1 | AJ18: 0 | AK18: 0 | AL18: 0 | AM18: 1 | AN18: 1 | AO18: 1 | AP18: 1 | AQ18: 0 | AR18: 0 | AS18: 0 | AT18: 0 | AU18: 0 | AV18: 1 | AW18: 0 | AX18: 0 | AY18: 1 | AZ18: 1 | BA18: 0 | BB18: FIM
B19: Divisor | F19: 1 | G19: 1 | H19: 0 | I19: 0 | J19: 0 | K19: 0 | L19: 0 | M19: 0 | N19: 0 | O19: 0 | P19: 0 | Q19: 0 | R19: 0 | S19: 0 | T19: 1 | U19: 0 | V19: 1 | W19: FIM
B20: Data XOR Divisor | C20: 0 | D20: 0 | E20: 0 | F20: 0 | G20: 1 | H20: 0 | I20: 1 | J20: 0 | K20: 0 | L20: 0 | M20: 1 | N20: 0 | O20: 0 | P20: 0 | Q20: 1 | R20: 1 | S20: 0 | T20: 1 | U20: 1 | V20: 1 | W20: 0 | X20: 0 | Y20: 0 | Z20: 1 | AA20: 1 | AB20: 0 | AC20: 1 | AD20: 1 | AE20: 0 | AF20: 1 | AG20: 0 | AH20: 1 | AI20: 1 | AJ20: 0 | AK20: 0 | AL20: 0 | AM20: 1 | AN20: 1 | AO20: 1 | AP20: 1 | AQ20: 0 | AR20: 0 | AS20: 0 | AT20: 0 | AU20: 0 | AV20: 1 | AW20: 0 | AX20: 0 | AY20: 1 | AZ20: 1 | BA20: 0 | BB20: FIM
B22: Data | C22: 0 | D22: 0 | E22: 0 | F22: 0 | G22: 1 | H22: 0 | I22: 1 | J22: 0 | K22: 0 | L22: 0 | M22: 1 | N22: 0 | O22: 0 | P22: 0 | Q22: 1 | R22: 1 | S22: 0 | T22: 1 | U22: 1 | V22: 1 | W22: 0 | X22: 0 | Y22: 0 | Z22: 1 | AA22: 1 | AB22: 0 | AC22: 1 | AD22: 1 | AE22: 0 | AF22: 1 | AG22: 0 | AH22: 1 | AI22: 1 | AJ22: 0 | AK22: 0 | AL22: 0 | AM22: 1 | AN22: 1 | AO22: 1 | AP22: 1 | AQ22: 0 | AR22: 0 | AS22: 0 | AT22: 0 | AU22: 0 | AV22: 1 | AW22: 0 | AX22: 0 | AY22: 1 | AZ22: 1 | BA22: 0 | BB22: FIM
B23: Divisor | G23: 1 | H23: 1 | I23: 0 | J23: 0 | K23: 0 | L23: 0 | M23: 0 | N23: 0 | O23: 0 | P23: 0 | Q23: 0 | R23: 0 | S23: 0 | T23: 0 | U23: 1 | V23: 0 | W23: 1 | X23: FIM
B24: Data XOR Divisor | C24: 0 | D24: 0 | E24: 0 | F24: 0 | G24: 0 | H24: 1 | I24: 1 | J24: 0 | K24: 0 | L24: 0 | M24: 1 | N24: 0 | O24: 0 | P24: 0 | Q24: 1 | R24: 1 | S24: 0 | T24: 1 | U24: 0 | V24: 1 | W24: 1 | X24: 0 | Y24: 0 | Z24: 1 | AA24: 1 | AB24: 0 | AC24: 1 | AD24: 1 | AE24: 0 | AF24: 1 | AG24: 0 | AH24: 1 | AI24: 1 | AJ24: 0 | AK24: 0 | AL24: 0 | AM24: 1 | AN24: 1 | AO24: 1 | AP24: 1 | AQ24: 0 | AR24: 0 | AS24: 0 | AT24: 0 | AU24: 0 | AV24: 1 | AW24: 0 | AX24: 0 | AY24: 1 | AZ24: 1 | BA24: 0 | BB24: FIM
B26: Data | C26: 0 | D26: 0 | E26: 0 | F26: 0 | G26: 0 | H26: 1 | I26: 1 | J26: 0 | K26: 0 | L26: 0 | M26: 1 | N26: 0 | O26: 0 | P26: 0 | Q26: 1 | R26: 1 | S26: 0 | T26: 1 | U26: 0 | V26: 1 | W26: 1 | X26: 0 | Y26: 0 | Z26: 1 | AA26: 1 | AB26: 0 | AC26: 1 | AD26: 1 | AE26: 0 | AF26: 1 | AG26: 0 | AH26: 1 | AI26: 1 | AJ26: 0 | AK26: 0 | AL26: 0 | AM26: 1 | AN26: 1 | AO26: 1 | AP26: 1 | AQ26: 0 | AR26: 0 | AS26: 0 | AT26: 0 | AU26: 0 | AV26: 1 | AW26: 0 | AX26: 0 | AY26: 1 | AZ26: 1 | BA26: 0 | BB26: FIM
B27: Divisor | H27: 1 | I27: 1 | J27: 0 | K27: 0 | L27: 0 | M27: 0 | N27: 0 | O27: 0 | P27: 0 | Q27: 0 | R27: 0 | S27: 0 | T27: 0 | U27: 0 | V27: 1 | W27: 0 | X27: 1 | Y27: FIM
B28: Data XOR Divisor | C28: 0 | D28: 0 | E28: 0 | F28: 0 | G28: 0 | H28: 0 | I28: 0 | J28: 0 | K28: 0 | L28: 0 | M28: 1 | N28: 0 | O28: 0 | P28: 0 | Q28: 1 | R28: 1 | S28: 0 | T28: 1 | U28: 0 | V28: 0 | W28: 1 | X28: 1 | Y28: 0 | Z28: 1 | AA28: 1 | AB28: 0 | AC28: 1 | AD28: 1 | AE28: 0 | AF28: 1 | AG28: 0 | AH28: 1 | AI28: 1 | AJ28: 0 | AK28: 0 | AL28: 0 | AM28: 1 | AN28: 1 | AO28: 1 | AP28: 1 | AQ28: 0 | AR28: 0 | AS28: 0 | AT28: 0 | AU28: 0 | AV28: 1 | AW28: 0 | AX28: 0 | AY28: 1 | AZ28: 1 | BA28: 0 | BB28: FIM
B30: Data | C30: 0 | D30: 0 | E30: 0 | F30: 0 | G30: 0 | H30: 0 | I30: 0 | J30: 0 | K30: 0 | L30: 0 | M30: 1 | N30: 0 | O30: 0 | P30: 0 | Q30: 1 | R30: 1 | S30: 0 | T30: 1 | U30: 0 | V30: 0 | W30: 1 | X30: 1 | Y30: 0 | Z30: 1 | AA30: 1 | AB30: 0 | AC30: 1 | AD30: 1 | AE30: 0 | AF30: 1 | AG30: 0 | AH30: 1 | AI30: 1 | AJ30: 0 | AK30: 0 | AL30: 0 | AM30: 1 | AN30: 1 | AO30: 1 | AP30: 1 | AQ30: 0 | AR30: 0 | AS30: 0 | AT30: 0 | AU30: 0 | AV30: 1 | AW30: 0 | AX30: 0 | AY30: 1 | AZ30: 1 | BA30: 0 | BB30: FIM
B31: Divisor | M31: 1 | N31: 1 | O31: 0 | P31: 0 | Q31: 0 | R31: 0 | S31: 0 | T31: 0 | U31: 0 | V31: 0 | W31: 0 | X31: 0 | Y31: 0 | Z31: 0 | AA31: 1 | AB31: 0 | AC31: 1 | AD31: FIM
B32: Data XOR Divisor | C32: 0 | D32: 0 | E32: 0 | F32: 0 | G32: 0 | H32: 0 | I32: 0 | J32: 0 | K32: 0 | L32: 0 | M32: 0 | N32: 1 | O32: 0 | P32: 0 | Q32: 1 | R32: 1 | S32: 0 | T32: 1 | U32: 0 | V32: 0 | W32: 1 | X32: 1 | Y32: 0 | Z32: 1 | AA32: 0 | AB32: 0 | AC32: 0 | AD32: 1 | AE32: 0 | AF32: 1 | AG32: 0 | AH32: 1 | AI32: 1 | AJ32: 0 | AK32: 0 | AL32: 0 | AM32: 1 | AN32: 1 | AO32: 1 | AP32: 1 | AQ32: 0 | AR32: 0 | AS32: 0 | AT32: 0 | AU32: 0 | AV32: 1 | AW32: 0 | AX32: 0 | AY32: 1 | AZ32: 1 | BA32: 0 | BB32: FIM
B34: Data | C34: 0 | D34: 0 | E34: 0 | F34: 0 | G34: 0 | H34: 0 | I34: 0 | J34: 0 | K34: 0 | L34: 0 | M34: 0 | N34: 1 | O34: 0 | P34: 0 | Q34: 1 | R34: 1 | S34: 0 | T34: 1 | U34: 0 | V34: 0 | W34: 1 | X34: 1 | Y34: 0 | Z34: 1 | AA34: 0 | AB34: 0 | AC34: 0 | AD34: 1 | AE34: 0 | AF34: 1 | AG34: 0 | AH34: 1 | AI34: 1 | AJ34: 0 | AK34: 0 | AL34: 0 | AM34: 1 | AN34: 1 | AO34: 1 | AP34: 1 | AQ34: 0 | AR34: 0 | AS34: 0 | AT34: 0 | AU34: 0 | AV34: 1 | AW34: 0 | AX34: 0 | AY34: 1 | AZ34: 1 | BA34: 0 | BB34: FIM
B35: Divisor | N35: 1 | O35: 1 | P35: 0 | Q35: 0 | R35: 0 | S35: 0 | T35: 0 | U35: 0 | V35: 0 | W35: 0 | X35: 0 | Y35: 0 | Z35: 0 | AA35: 0 | AB35: 1 | AC35: 0 | AD35: 1 | AE35: FIM
B36: Data XOR Divisor | C36: 0 | D36: 0 | E36: 0 | F36: 0 | G36: 0 | H36: 0 | I36: 0 | J36: 0 | K36: 0 | L36: 0 | M36: 0 | N36: 0 | O36: 1 | P36: 0 | Q36: 1 | R36: 1 | S36: 0 | T36: 1 | U36: 0 | V36: 0 | W36: 1 | X36: 1 | Y36: 0 | Z36: 1 | AA36: 0 | AB36: 1 | AC36: 0 | AD36: 0 | AE36: 0 | AF36: 1 | AG36: 0 | AH36: 1 | AI36: 1 | AJ36: 0 | AK36: 0 | AL36: 0 | AM36: 1 | AN36: 1 | AO36: 1 | AP36: 1 | AQ36: 0 | AR36: 0 | AS36: 0 | AT36: 0 | AU36: 0 | AV36: 1 | AW36: 0 | AX36: 0 | AY36: 1 | AZ36: 1 | BA36: 0 | BB36: FIM
B38: Data | C38: 0 | D38: 0 | E38: 0 | F38: 0 | G38: 0 | H38: 0 | I38: 0 | J38: 0 | K38: 0 | L38: 0 | M38: 0 | N38: 0 | O38: 1 | P38: 0 | Q38: 1 | R38: 1 | S38: 0 | T38: 1 | U38: 0 | V38: 0 | W38: 1 | X38: 1 | Y38: 0 | Z38: 1 | AA38: 0 | AB38: 1 | AC38: 0 | AD38: 0 | AE38: 0 | AF38: 1 | AG38: 0 | AH38: 1 | AI38: 1 | AJ38: 0 | AK38: 0 | AL38: 0 | AM38: 1 | AN38: 1 | AO38: 1 | AP38: 1 | AQ38: 0 | AR38: 0 | AS38: 0 | AT38: 0 | AU38: 0 | AV38: 1 | AW38: 0 | AX38: 0 | AY38: 1 | AZ38: 1 | BA38: 0 | BB38: FIM
B39: Divisor | O39: 1 | P39: 1 | Q39: 0 | R39: 0 | S39: 0 | T39: 0 | U39: 0 | V39: 0 | W39: 0 | X39: 0 | Y39: 0 | Z39: 0 | AA39: 0 | AB39: 0 | AC39: 1 | AD39: 0 | AE39: 1 | AF39: FIM
B40: Data XOR Divisor | C40: 0 | D40: 0 | E40: 0 | F40: 0 | G40: 0 | H40: 0 | I40: 0 | J40: 0 | K40: 0 | L40: 0 | M40: 0 | N40: 0 | O40: 0 | P40: 1 | Q40: 1 | R40: 1 | S40: 0 | T40: 1 | U40: 0 | V40: 0 | W40: 1 | X40: 1 | Y40: 0 | Z40: 1 | AA40: 0 | AB40: 1 | AC40: 1 | AD40: 0 | AE40: 1 | AF40: 1 | AG40: 0 | AH40: 1 | AI40: 1 | AJ40: 0 | AK40: 0 | AL40: 0 | AM40: 1 | AN40: 1 | AO40: 1 | AP40: 1 | AQ40: 0 | AR40: 0 | AS40: 0 | AT40: 0 | AU40: 0 | AV40: 1 | AW40: 0 | AX40: 0 | AY40: 1 | AZ40: 1 | BA40: 0 | BB40: FIM
B42: Data | C42: 0 | D42: 0 | E42: 0 | F42: 0 | G42: 0 | H42: 0 | I42: 0 | J42: 0 | K42: 0 | L42: 0 | M42: 0 | N42: 0 | O42: 0 | P42: 1 | Q42: 1 | R42: 1 | S42: 0 | T42: 1 | U42: 0 | V42: 0 | W42: 1 | X42: 1 | Y42: 0 | Z42: 1 | AA42: 0 | AB42: 1 | AC42: 1 | AD42: 0 | AE42: 1 | AF42: 1 | AG42: 0 | AH42: 1 | AI42: 1 | AJ42: 0 | AK42: 0 | AL42: 0 | AM42: 1 | AN42: 1 | AO42: 1 | AP42: 1 | AQ42: 0 | AR42: 0 | AS42: 0 | AT42: 0 | AU42: 0 | AV42: 1 | AW42: 0 | AX42: 0 | AY42: 1 | AZ42: 1 | BA42: 0 | BB42: FIM
B43: Divisor | P43: 1 | Q43: 1 | R43: 0 | S43: 0 | T43: 0 | U43: 0 | V43: 0 | W43: 0 | X43: 0 | Y43: 0 | Z43: 0 | AA43: 0 | AB43: 0 | AC43: 0 | AD43: 1 | AE43: 0 | AF43: 1 | AG43: FIM
B44: Data XOR Divisor | C44: 0 | D44: 0 | E44: 0 | F44: 0 | G44: 0 | H44: 0 | I44: 0 | J44: 0 | K44: 0 | L44: 0 | M44: 0 | N44: 0 | O44: 0 | P44: 0 | Q44: 0 | R44: 1 | S44: 0 | T44: 1 | U44: 0 | V44: 0 | W44: 1 | X44: 1 | Y44: 0 | Z44: 1 | AA44: 0 | AB44: 1 | AC44: 1 | AD44: 1 | AE44: 1 | AF44: 0 | AG44: 0 | AH44: 1 | AI44: 1 | AJ44: 0 | AK44: 0 | AL44: 0 | AM44: 1 | AN44: 1 | AO44: 1 | AP44: 1 | AQ44: 0 | AR44: 0 | AS44: 0 | AT44: 0 | AU44: 0 | AV44: 1 | AW44: 0 | AX44: 0 | AY44: 1 | AZ44: 1 | BA44: 0 | BB44: FIM
B46: Data | C46: 0 | D46: 0 | E46: 0 | F46: 0 | G46: 0 | H46: 0 | I46: 0 | J46: 0 | K46: 0 | L46: 0 | M46: 0 | N46: 0 | O46: 0 | P46: 0 | Q46: 0 | R46: 1 | S46: 0 | T46: 1 | U46: 0 | V46: 0 | W46: 1 | X46: 1 | Y46: 0 | Z46: 1 | AA46: 0 | AB46: 1 | AC46: 1 | AD46: 1 | AE46: 1 | AF46: 0 | AG46: 0 | AH46: 1 | AI46: 1 | AJ46: 0 | AK46: 0 | AL46: 0 | AM46: 1 | AN46: 1 | AO46: 1 | AP46: 1 | AQ46: 0 | AR46: 0 | AS46: 0 | AT46: 0 | AU46: 0 | AV46: 1 | AW46: 0 | AX46: 0 | AY46: 1 | AZ46: 1 | BA46: 0 | BB46: FIM
B47: Divisor | R47: 1 | S47: 1 | T47: 0 | U47: 0 | V47: 0 | W47: 0 | X47: 0 | Y47: 0 | Z47: 0 | AA47: 0 | AB47: 0 | AC47: 0 | AD47: 0 | AE47: 0 | AF47: 1 | AG47: 0 | AH47: 1 | AI47: FIM
B48: Data XOR Divisor | C48: 0 | D48: 0 | E48: 0 | F48: 0 | G48: 0 | H48: 0 | I48: 0 | J48: 0 | K48: 0 | L48: 0 | M48: 0 | N48: 0 | O48: 0 | P48: 0 | Q48: 0 | R48: 0 | S48: 1 | T48: 1 | U48: 0 | V48: 0 | W48: 1 | X48: 1 | Y48: 0 | Z48: 1 | AA48: 0 | AB48: 1 | AC48: 1 | AD48: 1 | AE48: 1 | AF48: 1 | AG48: 0 | AH48: 0 | AI48: 1 | AJ48: 0 | AK48: 0 | AL48: 0 | AM48: 1 | AN48: 1 | AO48: 1 | AP48: 1 | AQ48: 0 | AR48: 0 | AS48: 0 | AT48: 0 | AU48: 0 | AV48: 1 | AW48: 0 | AX48: 0 | AY48: 1 | AZ48: 1 | BA48: 0 | BB48: FIM
B50: Data | C50: 0 | D50: 0 | E50: 0 | F50: 0 | G50: 0 | H50: 0 | I50: 0 | J50: 0 | K50: 0 | L50: 0 | M50: 0 | N50: 0 | O50: 0 | P50: 0 | Q50: 0 | R50: 0 | S50: 1 | T50: 1 | U50: 0 | V50: 0 | W50: 1 | X50: 1 | Y50: 0 | Z50: 1 | AA50: 0 | AB50: 1 | AC50: 1 | AD50: 1 | AE50: 1 | AF50: 1 | AG50: 0 | AH50: 0 | AI50: 1 | AJ50: 0 | AK50: 0 | AL50: 0 | AM50: 1 | AN50: 1 | AO50: 1 | AP50: 1 | AQ50: 0 | AR50: 0 | AS50: 0 | AT50: 0 | AU50: 0 | AV50: 1 | AW50: 0 | AX50: 0 | AY50: 1 | AZ50: 1 | BA50: 0 | BB50: FIM
B51: Divisor | S51: 1 | T51: 1 | U51: 0 | V51: 0 | W51: 0 | X51: 0 | Y51: 0 | Z51: 0 | AA51: 0 | AB51: 0 | AC51: 0 | AD51: 0 | AE51: 0 | AF51: 0 | AG51: 1 | AH51: 0 | AI51: 1 | AJ51: FIM
B52: Data XOR Divisor | C52: 0 | D52: 0 | E52: 0 | F52: 0 | G52: 0 | H52: 0 | I52: 0 | J52: 0 | K52: 0 | L52: 0 | M52: 0 | N52: 0 | O52: 0 | P52: 0 | Q52: 0 | R52: 0 | S52: 0 | T52: 0 | U52: 0 | V52: 0 | W52: 1 | X52: 1 | Y52: 0 | Z52: 1 | AA52: 0 | AB52: 1 | AC52: 1 | AD52: 1 | AE52: 1 | AF52: 1 | AG52: 1 | AH52: 0 | AI52: 0 | AJ52: 0 | AK52: 0 | AL52: 0 | AM52: 1 | AN52: 1 | AO52: 1 | AP52: 1 | AQ52: 0 | AR52: 0 | AS52: 0 | AT52: 0 | AU52: 0 | AV52: 1 | AW52: 0 | AX52: 0 | AY52: 1 | AZ52: 1 | BA52: 0 | BB52: FIM
B54: Data | C54: 0 | D54: 0 | E54: 0 | F54: 0 | G54: 0 | H54: 0 | I54: 0 | J54: 0 | K54: 0 | L54: 0 | M54: 0 | N54: 0 | O54: 0 | P54: 0 | Q54: 0 | R54: 0 | S54: 0 | T54: 0 | U54: 0 | V54: 0 | W54: 1 | X54: 1 | Y54: 0 | Z54: 1 | AA54: 0 | AB54: 1 | AC54: 1 | AD54: 1 | AE54: 1 | AF54: 1 | AG54: 1 | AH54: 0 | AI54: 0 | AJ54: 0 | AK54: 0 | AL54: 0 | AM54: 1 | AN54: 1 | AO54: 1 | AP54: 1 | AQ54: 0 | AR54: 0 | AS54: 0 | AT54: 0 | AU54: 0 | AV54: 1 | AW54: 0 | AX54: 0 | AY54: 1 | AZ54: 1 | BA54: 0 | BB54: FIM
B55: Divisor | W55: 1 | X55: 1 | Y55: 0 | Z55: 0 | AA55: 0 | AB55: 0 | AC55: 0 | AD55: 0 | AE55: 0 | AF55: 0 | AG55: 0 | AH55: 0 | AI55: 0 | AJ55: 0 | AK55: 1 | AL55: 0 | AM55: 1 | AN55: FIM
B56: Data XOR Divisor | C56: 0 | D56: 0 | E56: 0 | F56: 0 | G56: 0 | H56: 0 | I56: 0 | J56: 0 | K56: 0 | L56: 0 | M56: 0 | N56: 0 | O56: 0 | P56: 0 | Q56: 0 | R56: 0 | S56: 0 | T56: 0 | U56: 0 | V56: 0 | W56: 0 | X56: 0 | Y56: 0 | Z56: 1 | AA56: 0 | AB56: 1 | AC56: 1 | AD56: 1 | AE56: 1 | AF56: 1 | AG56: 1 | AH56: 0 | AI56: 0 | AJ56: 0 | AK56: 1 | AL56: 0 | AM56: 0 | AN56: 1 | AO56: 1 | AP56: 1 | AQ56: 0 | AR56: 0 | AS56: 0 | AT56: 0 | AU56: 0 | AV56: 1 | AW56: 0 | AX56: 0 | AY56: 1 | AZ56: 1 | BA56: 0 | BB56: FIM
B58: Data | C58: 0 | D58: 0 | E58: 0 | F58: 0 | G58: 0 | H58: 0 | I58: 0 | J58: 0 | K58: 0 | L58: 0 | M58: 0 | N58: 0 | O58: 0 | P58: 0 | Q58: 0 | R58: 0 | S58: 0 | T58: 0 | U58: 0 | V58: 0 | W58: 0 | X58: 0 | Y58: 0 | Z58: 1 | AA58: 0 | AB58: 1 | AC58: 1 | AD58: 1 | AE58: 1 | AF58: 1 | AG58: 1 | AH58: 0 | AI58: 0 | AJ58: 0 | AK58: 1 | AL58: 0 | AM58: 0 | AN58: 1 | AO58: 1 | AP58: 1 | AQ58: 0 | AR58: 0 | AS58: 0 | AT58: 0 | AU58: 0 | AV58: 1 | AW58: 0 | AX58: 0 | AY58: 1 | AZ58: 1 | BA58: 0 | BB58: FIM
B59: Divisor | Z59: 1 | AA59: 1 | AB59: 0 | AC59: 0 | AD59: 0 | AE59: 0 | AF59: 0 | AG59: 0 | AH59: 0 | AI59: 0 | AJ59: 0 | AK59: 0 | AL59: 0 | AM59: 0 | AN59: 1 | AO59: 0 | AP59: 1 | AQ59: FIM
B60: Data XOR Divisor | C60: 0 | D60: 0 | E60: 0 | F60: 0 | G60: 0 | H60: 0 | I60: 0 | J60: 0 | K60: 0 | L60: 0 | M60: 0 | N60: 0 | O60: 0 | P60: 0 | Q60: 0 | R60: 0 | S60: 0 | T60: 0 | U60: 0 | V60: 0 | W60: 0 | X60: 0 | Y60: 0 | Z60: 0 | AA60: 1 | AB60: 1 | AC60: 1 | AD60: 1 | AE60: 1 | AF60: 1 | AG60: 1 | AH60: 0 | AI60: 0 | AJ60: 0 | AK60: 1 | AL60: 0 | AM60: 0 | AN60: 0 | AO60: 1 | AP60: 0 | AQ60: 0 | AR60: 0 | AS60: 0 | AT60: 0 | AU60: 0 | AV60: 1 | AW60: 0 | AX60: 0 | AY60: 1 | AZ60: 1 | BA60: 0 | BB60: FIM
B62: Data | C62: 0 | D62: 0 | E62: 0 | F62: 0 | G62: 0 | H62: 0 | I62: 0 | J62: 0 | K62: 0 | L62: 0 | M62: 0 | N62: 0 | O62: 0 | P62: 0 | Q62: 0 | R62: 0 | S62: 0 | T62: 0 | U62: 0 | V62: 0 | W62: 0 | X62: 0 | Y62: 0 | Z62: 0 | AA62: 1 | AB62: 1 | AC62: 1 | AD62: 1 | AE62: 1 | AF62: 1 | AG62: 1 | AH62: 0 | AI62: 0 | AJ62: 0 | AK62: 1 | AL62: 0 | AM62: 0 | AN62: 0 | AO62: 1 | AP62: 0 | AQ62: 0 | AR62: 0 | AS62: 0 | AT62: 0 | AU62: 0 | AV62: 1 | AW62: 0 | AX62: 0 | AY62: 1 | AZ62: 1 | BA62: 0 | BB62: FIM
B63: Divisor | AA63: 1 | AB63: 1 | AC63: 0 | AD63: 0 | AE63: 0 | AF63: 0 | AG63: 0 | AH63: 0 | AI63: 0 | AJ63: 0 | AK63: 0 | AL63: 0 | AM63: 0 | AN63: 0 | AO63: 1 | AP63: 0 | AQ63: 1 | AR63: FIM
B64: Data XOR Divisor | C64: 0 | D64: 0 | E64: 0 | F64: 0 | G64: 0 | H64: 0 | I64: 0 | J64: 0 | K64: 0 | L64: 0 | M64: 0 | N64: 0 | O64: 0 | P64: 0 | Q64: 0 | R64: 0 | S64: 0 | T64: 0 | U64: 0 | V64: 0 | W64: 0 | X64: 0 | Y64: 0 | Z64: 0 | AA64: 0 | AB64: 0 | AC64: 1 | AD64: 1 | AE64: 1 | AF64: 1 | AG64: 1 | AH64: 0 | AI64: 0 | AJ64: 0 | AK64: 1 | AL64: 0 | AM64: 0 | AN64: 0 | AO64: 0 | AP64: 0 | AQ64: 1 | AR64: 0 | AS64: 0 | AT64: 0 | AU64: 0 | AV64: 1 | AW64: 0 | AX64: 0 | AY64: 1 | AZ64: 1 | BA64: 0 | BB64: FIM
B66: Data | C66: 0 | D66: 0 | E66: 0 | F66: 0 | G66: 0 | H66: 0 | I66: 0 | J66: 0 | K66: 0 | L66: 0 | M66: 0 | N66: 0 | O66: 0 | P66: 0 | Q66: 0 | R66: 0 | S66: 0 | T66: 0 | U66: 0 | V66: 0 | W66: 0 | X66: 0 | Y66: 0 | Z66: 0 | AA66: 0 | AB66: 0 | AC66: 1 | AD66: 1 | AE66: 1 | AF66: 1 | AG66: 1 | AH66: 0 | AI66: 0 | AJ66: 0 | AK66: 1 | AL66: 0 | AM66: 0 | AN66: 0 | AO66: 0 | AP66: 0 | AQ66: 1 | AR66: 0 | AS66: 0 | AT66: 0 | AU66: 0 | AV66: 1 | AW66: 0 | AX66: 0 | AY66: 1 | AZ66: 1 | BA66: 0 | BB66: FIM
B67: Divisor | AC67: 1 | AD67: 1 | AE67: 0 | AF67: 0 | AG67: 0 | AH67: 0 | AI67: 0 | AJ67: 0 | AK67: 0 | AL67: 0 | AM67: 0 | AN67: 0 | AO67: 0 | AP67: 0 | AQ67: 1 | AR67: 0 | AS67: 1 | AT67: FIM
B68: Data XOR Divisor | C68: 0 | D68: 0 | E68: 0 | F68: 0 | G68: 0 | H68: 0 | I68: 0 | J68: 0 | K68: 0 | L68: 0 | M68: 0 | N68: 0 | O68: 0 | P68: 0 | Q68: 0 | R68: 0 | S68: 0 | T68: 0 | U68: 0 | V68: 0 | W68: 0 | X68: 0 | Y68: 0 | Z68: 0 | AA68: 0 | AB68: 0 | AC68: 0 | AD68: 0 | AE68: 1 | AF68: 1 | AG68: 1 | AH68: 0 | AI68: 0 | AJ68: 0 | AK68: 1 | AL68: 0 | AM68: 0 | AN68: 0 | AO68: 0 | AP68: 0 | AQ68: 0 | AR68: 0 | AS68: 1 | AT68: 0 | AU68: 0 | AV68: 1 | AW68: 0 | AX68: 0 | AY68: 1 | AZ68: 1 | BA68: 0 | BB68: FIM
B70: Data | C70: 0 | D70: 0 | E70: 0 | F70: 0 | G70: 0 | H70: 0 | I70: 0 | J70: 0 | K70: 0 | L70: 0 | M70: 0 | N70: 0 | O70: 0 | P70: 0 | Q70: 0 | R70: 0 | S70: 0 | T70: 0 | U70: 0 | V70: 0 | W70: 0 | X70: 0 | Y70: 0 | Z70: 0 | AA70: 0 | AB70: 0 | AC70: 0 | AD70: 0 | AE70: 1 | AF70: 1 | AG70: 1 | AH70: 0 | AI70: 0 | AJ70: 0 | AK70: 1 | AL70: 0 | AM70: 0 | AN70: 0 | AO70: 0 | AP70: 0 | AQ70: 0 | AR70: 0 | AS70: 1 | AT70: 0 | AU70: 0 | AV70: 1 | AW70: 0 | AX70: 0 | AY70: 1 | AZ70: 1 | BA70: 0 | BB70: FIM
B71: Divisor | AE71: 1 | AF71: 1 | AG71: 0 | AH71: 0 | AI71: 0 | AJ71: 0 | AK71: 0 | AL71: 0 | AM71: 0 | AN71: 0 | AO71: 0 | AP71: 0 | AQ71: 0 | AR71: 0 | AS71: 1 | AT71: 0 | AU71: 1 | AV71: FIM
B72: Data XOR Divisor | C72: 0 | D72: 0 | E72: 0 | F72: 0 | G72: 0 | H72: 0 | I72: 0 | J72: 0 | K72: 0 | L72: 0 | M72: 0 | N72: 0 | O72: 0 | P72: 0 | Q72: 0 | R72: 0 | S72: 0 | T72: 0 | U72: 0 | V72: 0 | W72: 0 | X72: 0 | Y72: 0 | Z72: 0 | AA72: 0 | AB72: 0 | AC72: 0 | AD72: 0 | AE72: 0 | AF72: 0 | AG72: 1 | AH72: 0 | AI72: 0 | AJ72: 0 | AK72: 1 | AL72: 0 | AM72: 0 | AN72: 0 | AO72: 0 | AP72: 0 | AQ72: 0 | AR72: 0 | AS72: 0 | AT72: 0 | AU72: 1 | AV72: 1 | AW72: 0 | AX72: 0 | AY72: 1 | AZ72: 1 | BA72: 0 | BB72: FIM
B74: Data | C74: 0 | D74: 0 | E74: 0 | F74: 0 | G74: 0 | H74: 0 | I74: 0 | J74: 0 | K74: 0 | L74: 0 | M74: 0 | N74: 0 | O74: 0 | P74: 0 | Q74: 0 | R74: 0 | S74: 0 | T74: 0 | U74: 0 | V74: 0 | W74: 0 | X74: 0 | Y74: 0 | Z74: 0 | AA74: 0 | AB74: 0 | AC74: 0 | AD74: 0 | AE74: 0 | AF74: 0 | AG74: 1 | AH74: 0 | AI74: 0 | AJ74: 0 | AK74: 1 | AL74: 0 | AM74: 0 | AN74: 0 | AO74: 0 | AP74: 0 | AQ74: 0 | AR74: 0 | AS74: 0 | AT74: 0 | AU74: 1 | AV74: 1 | AW74: 0 | AX74: 0 | AY74: 1 | AZ74: 1 | BA74: 0 | BB74: FIM
B75: Divisor | AG75: 1 | AH75: 1 | AI75: 0 | AJ75: 0 | AK75: 0 | AL75: 0 | AM75: 0 | AN75: 0 | AO75: 0 | AP75: 0 | AQ75: 0 | AR75: 0 | AS75: 0 | AT75: 0 | AU75: 1 | AV75: 0 | AW75: 1 | AX75: FIM
B76: Data XOR Divisor | C76: 0 | D76: 0 | E76: 0 | F76: 0 | G76: 0 | H76: 0 | I76: 0 | J76: 0 | K76: 0 | L76: 0 | M76: 0 | N76: 0 | O76: 0 | P76: 0 | Q76: 0 | R76: 0 | S76: 0 | T76: 0 | U76: 0 | V76: 0 | W76: 0 | X76: 0 | Y76: 0 | Z76: 0 | AA76: 0 | AB76: 0 | AC76: 0 | AD76: 0 | AE76: 0 | AF76: 0 | AG76: 0 | AH76: 1 | AI76: 0 | AJ76: 0 | AK76: 1 | AL76: 0 | AM76: 0 | AN76: 0 | AO76: 0 | AP76: 0 | AQ76: 0 | AR76: 0 | AS76: 0 | AT76: 0 | AU76: 0 | AV76: 1 | AW76: 1 | AX76: 0 | AY76: 1 | AZ76: 1 | BA76: 0 | BB76: FIM
B78: Data | C78: 0 | D78: 0 | E78: 0 | F78: 0 | G78: 0 | H78: 0 | I78: 0 | J78: 0 | K78: 0 | L78: 0 | M78: 0 | N78: 0 | O78: 0 | P78: 0 | Q78: 0 | R78: 0 | S78: 0 | T78: 0 | U78: 0 | V78: 0 | W78: 0 | X78: 0 | Y78: 0 | Z78: 0 | AA78: 0 | AB78: 0 | AC78: 0 | AD78: 0 | AE78: 0 | AF78: 0 | AG78: 0 | AH78: 1 | AI78: 0 | AJ78: 0 | AK78: 1 | AL78: 0 | AM78: 0 | AN78: 0 | AO78: 0 | AP78: 0 | AQ78: 0 | AR78: 0 | AS78: 0 | AT78: 0 | AU78: 0 | AV78: 1 | AW78: 1 | AX78: 0 | AY78: 1 | AZ78: 1 | BA78: 0 | BB78: FIM
B79: Divisor | AH79: 1 | AI79: 1 | AJ79: 0 | AK79: 0 | AL79: 0 | AM79: 0 | AN79: 0 | AO79: 0 | AP79: 0 | AQ79: 0 | AR79: 0 | AS79: 0 | AT79: 0 | AU79: 0 | AV79: 1 | AW79: 0 | AX79: 1 | AY79: FIM
B80: Data XOR Divisor | C80: 0 | D80: 0 | E80: 0 | F80: 0 | G80: 0 | H80: 0 | I80: 0 | J80: 0 | K80: 0 | L80: 0 | M80: 0 | N80: 0 | O80: 0 | P80: 0 | Q80: 0 | R80: 0 | S80: 0 | T80: 0 | U80: 0 | V80: 0 | W80: 0 | X80: 0 | Y80: 0 | Z80: 0 | AA80: 0 | AB80: 0 | AC80: 0 | AD80: 0 | AE80: 0 | AF80: 0 | AG80: 0 | AH80: 0 | AI80: 1 | AJ80: 0 | AK80: 1 | AL80: 0 | AM80: 0 | AN80: 0 | AO80: 0 | AP80: 0 | AQ80: 0 | AR80: 0 | AS80: 0 | AT80: 0 | AU80: 0 | AV80: 0 | AW80: 1 | AX80: 1 | AY80: 1 | AZ80: 1 | BA80: 0 | BB80: FIM
B82: Data | C82: 0 | D82: 0 | E82: 0 | F82: 0 | G82: 0 | H82: 0 | I82: 0 | J82: 0 | K82: 0 | L82: 0 | M82: 0 | N82: 0 | O82: 0 | P82: 0 | Q82: 0 | R82: 0 | S82: 0 | T82: 0 | U82: 0 | V82: 0 | W82: 0 | X82: 0 | Y82: 0 | Z82: 0 | AA82: 0 | AB82: 0 | AC82: 0 | AD82: 0 | AE82: 0 | AF82: 0 | AG82: 0 | AH82: 0 | AI82: 1 | AJ82: 0 | AK82: 1 | AL82: 0 | AM82: 0 | AN82: 0 | AO82: 0 | AP82: 0 | AQ82: 0 | AR82: 0 | AS82: 0 | AT82: 0 | AU82: 0 | AV82: 0 | AW82: 1 | AX82: 1 | AY82: 1 | AZ82: 1 | BA82: 0 | BB82: FIM
B83: Divisor | AI83: 1 | AJ83: 1 | AK83: 0 | AL83: 0 | AM83: 0 | AN83: 0 | AO83: 0 | AP83: 0 | AQ83: 0 | AR83: 0 | AS83: 0 | AT83: 0 | AU83: 0 | AV83: 0 | AW83: 1 | AX83: 0 | AY83: 1 | AZ83: FIM
B84: Data XOR Divisor | C84: 0 | D84: 0 | E84: 0 | F84: 0 | G84: 0 | H84: 0 | I84: 0 | J84: 0 | K84: 0 | L84: 0 | M84: 0 | N84: 0 | O84: 0 | P84: 0 | Q84: 0 | R84: 0 | S84: 0 | T84: 0 | U84: 0 | V84: 0 | W84: 0 | X84: 0 | Y84: 0 | Z84: 0 | AA84: 0 | AB84: 0 | AC84: 0 | AD84: 0 | AE84: 0 | AF84: 0 | AG84: 0 | AH84: 0 | AI84: 0 | AJ84: 1 | AK84: 1 | AL84: 0 | AM84: 0 | AN84: 0 | AO84: 0 | AP84: 0 | AQ84: 0 | AR84: 0 | AS84: 0 | AT84: 0 | AU84: 0 | AV84: 0 | AW84: 0 | AX84: 1 | AY84: 0 | AZ84: 1 | BA84: 0 | BB84: FIM
B86: Data | C86: 0 | D86: 0 | E86: 0 | F86: 0 | G86: 0 | H86: 0 | I86: 0 | J86: 0 | K86: 0 | L86: 0 | M86: 0 | N86: 0 | O86: 0 | P86: 0 | Q86: 0 | R86: 0 | S86: 0 | T86: 0 | U86: 0 | V86: 0 | W86: 0 | X86: 0 | Y86: 0 | Z86: 0 | AA86: 0 | AB86: 0 | AC86: 0 | AD86: 0 | AE86: 0 | AF86: 0 | AG86: 0 | AH86: 0 | AI86: 0 | AJ86: 1 | AK86: 1 | AL86: 0 | AM86: 0 | AN86: 0 | AO86: 0 | AP86: 0 | AQ86: 0 | AR86: 0 | AS86: 0 | AT86: 0 | AU86: 0 | AV86: 0 | AW86: 0 | AX86: 1 | AY86: 0 | AZ86: 1 | BA86: 0 | BB86: FIM
B87: Divisor | AJ87: 1 | AK87: 1 | AL87: 0 | AM87: 0 | AN87: 0 | AO87: 0 | AP87: 0 | AQ87: 0 | AR87: 0 | AS87: 0 | AT87: 0 | AU87: 0 | AV87: 0 | AW87: 0 | AX87: 1 | AY87: 0 | AZ87: 1 | BA87: FIM
B88: Data XOR Divisor | C88: 0 | D88: 0 | E88: 0 | F88: 0 | G88: 0 | H88: 0 | I88: 0 | J88: 0 | K88: 0 | L88: 0 | M88: 0 | N88: 0 | O88: 0 | P88: 0 | Q88: 0 | R88: 0 | S88: 0 | T88: 0 | U88: 0 | V88: 0 | W88: 0 | X88: 0 | Y88: 0 | Z88: 0 | AA88: 0 | AB88: 0 | AC88: 0 | AD88: 0 | AE88: 0 | AF88: 0 | AG88: 0 | AH88: 0 | AI88: 0 | AJ88: 0 | AK88: 0 | AL88: 0 | AM88: 0 | AN88: 0 | AO88: 0 | AP88: 0 | AQ88: 0 | AR88: 0 | AS88: 0 | AT88: 0 | AU88: 0 | AV88: 0 | AW88: 0 | AX88: 0 | AY88: 0 | AZ88: 0 | BA88: 0 | BB88: FIM
B90: Data | C90: 0 | D90: 0 | E90: 0 | F90: 0 | G90: 0 | H90: 0 | I90: 0 | J90: 0 | K90: 0 | L90: 0 | M90: 0 | N90: 0 | O90: 0 | P90: 0 | Q90: 0 | R90: 0 | S90: 0 | T90: 0 | U90: 0 | V90: 0 | W90: 0 | X90: 0 | Y90: 0 | Z90: 0 | AA90: 0 | AB90: 0 | AC90: 0 | AD90: 0 | AE90: 0 | AF90: 0 | AG90: 0 | AH90: 0 | AI90: 0 | AJ90: 0 | AK90: 0 | AL90: 0 | AM90: 0 | AN90: 0 | AO90: 0 | AP90: 0 | AQ90: 0 | AR90: 0 | AS90: 0 | AT90: 0 | AU90: 0 | AV90: 0 | AW90: 0 | AX90: 0 | AY90: 0 | AZ90: 0 | BA90: 0 | BB90: FIM

Sheet Explanação - Gerador
B1: A | C1: B | D1: C | E1: D | F1: E | G1: F | H1: G | I1: H | J1: I | K1: J | L1: K | M1: L | N1: M | O1: N | P1: O | Q1: P | R1: Q | S1: R | T1: S | U1: T | V1: U | W1: V | X1: W | Y1: X | Z1: Y | AA1: Z | AB1: AA | AC1: AB | AD1: AC | AE1: AD | AF1: AE | AG1: AF | AH1: AG | AI1: AH | AJ1: AF | AK1: AG | AL1: AH
A2: 1 | C2: CRC CAN - Geração
A3: 2 | C3: Inicio relativo
A4: 3 | F4: polinômio | Q4: no de zeros no final = maior expoente do polinômio
A5: 4
A6: 5 | D6: 1 | E6: 2 | F6: 3 | G6: 4 | H6: 5 | I6: 6 | J6: 7 | K6: 8 | L6: 9 | M6: 10 | N6: 11 | O6: 12
A7: 6 | C7: Data | D7: 1 | E7: 1 | F7: 0 | G7: 1 | H7: 1 | I7: 0 | J7: 1 | K7: 0 | L7: 0 | M7: 0 | N7: 0 | O7: FIM | W7: bits: | X7: => | Y7: 4 | Z7: 3 | AA7: 2 | AB7: 1 | AC7: 0
A8: 7 | C8: Divisor | D8: 1 | E8: 0 | F8: 0 | G8: 1 | H8: 1 | I8: FIM | R8: Polinômio: | U8: X^4 + X + 1 | X8: => | Y8: 1 | Z8: 0 | AA8: 0 | AB8: 1 | AC8: 1
A9: 8 | C9: Data XOR Divisor | D9: 0 | E9: 1 | F9: 0 | G9: 0 | H9: 0 | I9: 0 | J9: 1 | K9: 0 | L9: 0 | M9: 0 | N9: 0 | O9: FIM
A10: 9
A11: 10 | C11: Data | D11: 0 | E11: 1 | F11: 0 | G11: 0 | H11: 0 | I11: 0 | J11: 1 | K11: 0 | L11: 0 | M11: 0 | N11: 0 | O11: FIM | U11: Resultado de Data XOR Divisor
A12: 11 | C12: Divisor | E12: 1 | F12: 0 | G12: 0 | H12: 1 | I12: 1 | J12: FIM | U12: Desloca-se para direita à cada passo, sempre alinhando com o "1" na linha de cima.
A13: 12 | C13: Data XOR Divisor | D13: 0 | E13: 0 | F13: 0 | G13: 0 | H13: 1 | I13: 1 | J13: 1 | K13: 0 | L13: 0 | M13: 0 | N13: 0 | O13: FIM
A14: 13
A15: 14 | C15: Data | D15: 0 | E15: 0 | F15: 0 | G15: 0 | H15: 1 | I15: 1 | J15: 1 | K15: 0 | L15: 0 | M15: 0 | N15: 0 | O15: FIM
A16: 15 | C16: Divisor | H16: 1 | I16: 0 | J16: 0 | K16: 1 | L16: 1 | M16: FIM
A17: 16 | C17: Data XOR Divisor | D17: 0 | E17: 0 | F17: 0 | G17: 0 | H17: 0 | I17: 1 | J17: 1 | K17: 1 | L17: 1 | M17: 0 | N17: 0 | O17: FIM
A18: 17
A19: 18 | C19: Data | D19: 0 | E19: 0 | F19: 0 | G19: 0 | H19: 0 | I19: 1 | J19: 1 | K19: 1 | L19: 1 | M19: 0 | N19: 0 | O19: FIM
A20: 19 | C20: Divisor | I20: 1 | J20: 0 | K20: 0 | L20: 1 | M20: 1 | N20: FIM
A21: 20 | C21: Data XOR Divisor | D21: 0 | E21: 0 | F21: 0 | G21: 0 | H21: 0 | I21: 0 | J21: 1 | K21: 1 | L21: 0 | M21: 1 | N21: 0 | O21: FIM
A22: 21
A23: 22 | C23: Data | D23: 0 | E23: 0 | F23: 0 | G23: 0 | H23: 0 | I23: 0 | J23: 1 | K23: 1 | L23: 0 | M23: 1 | N23: 0 | O23: FIM
A24: 23 | C24: Divisor | J24: 1 | K24: 0 | L24: 0 | M24: 1 | N24: 1 | O24: FIM | U24: Finaliza quando coincidir com o final da linha superior ou não for possível
A25: 24 | C25: Data XOR Divisor | D25: 0 | E25: 0 | F25: 0 | G25: 0 | H25: 0 | I25: 0 | J25: 0 | K25: 1 | L25: 0 | M25: 0 | N25: 1 | O25: FIM | U25: fazer o deslocamento sem ultrapassar a linha superior.
A26: 25
A27: 26 | C27: Data | D27: 0 | E27: 0 | F27: 0 | G27: 0 | H27: 0 | I27: 0 | J27: 0 | K27: 1 | L27: 0 | M27: 0 | N27: 1 | O27: FIM | U27: CRC procurado ! No de dígitos da esquerda para direita igual ao maior expoente do Polinômio
A28: 27
A29: 28
A30: 29
A31: 30

Sheet Explanação - Receptor
B1: A | C1: B | D1: C | E1: D | F1: E | G1: F | H1: G | I1: H | J1: I | K1: J | L1: K | M1: L | N1: M | O1: N | P1: O | Q1: P | R1: Q | S1: R | T1: S | U1: T | V1: U | W1: V | X1: W | Y1: X | Z1: Y | AA1: Z | AB1: AA | AC1: AB | AD1: AC | AE1: AD | AF1: AE | AG1: AF | AH1: AG | AI1: AH | AJ1: AF | AK1: AG | AL1: AH
A2: 1 | C2: CRC CAN - Verificação
A3: 2 | C3: Inicio relativo
A4: 3 | F4: polinômio | Q4: substituir os zeros iniciais pelo resultado obtido na geração (CRC)
A5: 4
A6: 5 | D6: 1 | E6: 2 | F6: 3 | G6: 4 | H6: 5 | I6: 6 | J6: 7 | K6: 8 | L6: 9 | M6: 10 | N6: 11 | O6: 12 | W6: bits: | X6: => | Y6: 4 | Z6: 3 | AA6: 2 | AB6: 1 | AC6: 0
A7: 6 | C7: Data | D7: 1 | E7: 1 | F7: 0 | G7: 1 | H7: 1 | I7: 0 | J7: 1 | K7: 1 | L7: 0 | M7: 0 | N7: 1 | O7: FIM | R7: Polinômio: | U7: X^4 + X + 1 | X7: => | Y7: 1 | Z7: 0 | AA7: 0 | AB7: 1 | AC7: 1
A8: 7 | C8: Divisor | D8: 1 | E8: 0 | F8: 0 | G8: 1 | H8: 1 | I8: FIM
A9: 8 | C9: Data XOR Divisor | D9: 0 | E9: 1 | F9: 0 | G9: 0 | H9: 0 | I9: 0 | J9: 1 | K9: 1 | L9: 0 | M9: 0 | N9: 1 | O9: FIM
A10: 9
A11: 10 | C11: Data | D11: 0 | E11: 1 | F11: 0 | G11: 0 | H11: 0 | I11: 0 | J11: 1 | K11: 1 | L11: 0 | M11: 0 | N11: 1 | O11: FIM | U11: Resultado de Data XOR Divisor
A12: 11 | C12: Divisor | E12: 1 | F12: 0 | G12: 0 | H12: 1 | I12: 1 | J12: FIM | U12: Desloca-se para direita à cada passo, sempre alinhando com o "1" na linha de cima.
A13: 12 | C13: Data XOR Divisor | D13: 0 | E13: 0 | F13: 0 | G13: 0 | H13: 1 | I13: 1 | J13: 1 | K13: 1 | L13: 0 | M13: 0 | N13: 1 | O13: FIM
A14: 13
A15: 14 | C15: Data | D15: 0 | E15: 0 | F15: 0 | G15: 0 | H15: 1 | I15: 1 | J15: 1 | K15: 1 | L15: 0 | M15: 0 | N15: 1 | O15: FIM
A16: 15 | C16: Divisor | H16: 1 | I16: 0 | J16: 0 | K16: 1 | L16: 1 | M16: FIM
A17: 16 | C17: Data XOR Divisor | D17: 0 | E17: 0 | F17: 0 | G17: 0 | H17: 0 | I17: 1 | J17: 1 | K17: 0 | L17: 1 | M17: 0 | N17: 1 | O17: FIM
A18: 17
A19: 18 | C19: Data | D19: 0 | E19: 0 | F19: 0 | G19: 0 | H19: 0 | I19: 1 | J19: 1 | K19: 0 | L19: 1 | M19: 0 | N19: 1 | O19: FIM
A20: 19 | C20: Divisor | I20: 1 | J20: 0 | K20: 0 | L20: 1 | M20: 1 | N20: FIM
A21: 20 | C21: Data XOR Divisor | D21: 0 | E21: 0 | F21: 0 | G21: 0 | H21: 0 | I21: 0 | J21: 1 | K21: 0 | L21: 0 | M21: 1 | N21: 1 | O21: FIM
A22: 21
A23: 22 | C23: Data | D23: 0 | E23: 0 | F23: 0 | G23: 0 | H23: 0 | I23: 0 | J23: 1 | K23: 0 | L23: 0 | M23: 1 | N23: 1 | O23: FIM
A24: 23 | C24: Divisor | J24: 1 | K24: 0 | L24: 0 | M24: 1 | N24: 1 | O24: FIM | U24: Finaliza quando coincidir com o final da linha superior ou não for possível
A25: 24 | C25: Data XOR Divisor | D25: 0 | E25: 0 | F25: 0 | G25: 0 | H25: 0 | I25: 0 | J25: 0 | K25: 0 | L25: 0 | M25: 0 | N25: 0 | O25: FIM | U25: fazer o deslocamento sem ultrapassar a linha superior.
A26: 25
A27: 26 | C27: Data | D27: 0 | E27: 0 | F27: 0 | G27: 0 | H27: 0 | I27: 0 | J27: 0 | K27: 0 | L27: 0 | M27: 0 | N27: 0 | O27: FIM | U27: Se os dados estiverem corretos, o resultado dessa operação tem que ser ZERO!
A28: 27
A29: 28
A30: 29
A31: 30

Sheet Dados
B2: Divisor | C2: 98309 | D2: 32773
B4: Exemplo de CRC-16 IBM
B5: Data | C5: =I6&J6&K6&L6&M6&N6&O6&P6&Q6&R6&S6&T6&U6&V6&W6&X6&Y6&Z6&AA6&AB6&AC6&AD6&AE6&AF6&AG6&AH6&AI6&AJ6&AK6&AL6&AM6&AN6&AO6&AP6&AQ6 -> 10000010001000000100000110110101100 | I5: 34 | J5: 33 | K5: 32 | L5: 31 | M5: 30 | N5: 29 | O5: 28 | P5: 27 | Q5: 26 | R5: 25 | S5: 24 | T5: 23 | U5: 22 | V5: 21 | W5: 20 | X5: 19 | Y5: 18 | Z5: 17 | AA5: 16 | AB5: 15 | AC5: 14 | AD5: 14 | AE5: 12 | AF5: 11 | AG5: 10 | AH5: 9 | AI5: 8 | AJ5: 7 | AK5: 6 | AL5: 5 | AM5: 4 | AN5: 3 | AO5: 2 | AP5: 1 | AQ5: 0
C6: Decimal | D6: =SUM(I7:AQ7) -> 17465216428 | H6: 0X 411020DAC | I6: 1 | J6: 0 | K6: 0 | L6: 0 | M6: 0 | N6: 0 | O6: 1 | P6: 0 | Q6: 0 | R6: 0 | S6: 1 | T6: 0 | U6: 0 | V6: 0 | W6: 0 | X6: 0 | Y6: 0 | Z6: 1 | AA6: 0 | AB6: 0 | AC6: 0 | AD6: 0 | AE6: 0 | AF6: 1 | AG6: 1 | AH6: 0 | AI6: 1 | AJ6: 1 | AK6: 0 | AL6: 1 | AM6: 0 | AN6: 1 | AO6: 1 | AP6: 0 | AQ6: 0 | AR6: 0 | AS6: 0 | AT6: 0 | AU6: 0 | AV6: 0 | AW6: 0 | AX6: 0 | AY6: 0 | AZ6: 0 | BA6: 0 | BB6: 0 | BC6: 0 | BD6: 0 | BE6: 0 | BF6: 0 | BG6: 0 | BH6: FIM
I7: =I6*(2^I5) -> 17179869184 | J7: =J6*(2^J5) -> 0 | K7: =K6*(2^K5) -> 0 | L7: =L6*(2^L5) -> 0 | M7: =M6*(2^M5) -> 0 | N7: =N6*(2^N5) -> 0 | O7: =O6*(2^O5) -> 268435456 | P7: =P6*(2^P5) -> 0 | Q7: =Q6*(2^Q5) -> 0 | R7: =R6*(2^R5) -> 0 | S7: =S6*(2^S5) -> 16777216 | T7: =T6*(2^T5) -> 0 | U7: =U6*(2^U5) -> 0 | V7: =V6*(2^V5) -> 0 | W7: =W6*(2^W5) -> 0 | X7: =X6*(2^X5) -> 0 | Y7: =Y6*(2^Y5) -> 0 | Z7: =Z6*(2^Z5) -> 131072 | AA7: =AA6*(2^AA5) -> 0 | AB7: =AB6*(2^AB5) -> 0 | AC7: =AC6*(2^AC5) -> 0 | AD7: =AD6*(2^AD5) -> 0 | AE7: =AE6*(2^AE5) -> 0 | AF7: =AF6*(2^AF5) -> 2048 | AG7: =AG6*(2^AG5) -> 1024 | AH7: =AH6*(2^AH5) -> 0 | AI7: =AI6*(2^AI5) -> 256 | AJ7: =AJ6*(2^AJ5) -> 128 | AK7: =AK6*(2^AK5) -> 0 | AL7: =AL6*(2^AL5) -> 32 | AM7: =AM6*(2^AM5) -> 0 | AN7: =AN6*(2^AN5) -> 8 | AO7: =AO6*(2^AO5) -> 4 | AP7: =AP6*(2^AP5) -> 0 | AQ7: =AQ6*(2^AQ5) -> 0
B9: Divisor | C9: =AA10&AB10&AC10&AD10&AE10&AF10&AG10&AH10&AI10&AJ10&AK10&AL10&AM10&AN10&AO10&AP10&AQ10 -> 11000000000000101 | D9: X^16+X^15+X^2+1 | H9: 0x 1 8005 | AA9: 16 | AB9: 15 | AC9: 14 | AD9: 13 | AE9: 12 | AF9: 11 | AG9: 10 | AH9: 9 | AI9: 8 | AJ9: 7 | AK9: 6 | AL9: 5 | AM9: 4 | AN9: 3 | AO9: 2 | AP9: 1 | AQ9: 0
C10: Decimal | D10: =SUM(AA11:AQ11) -> 98309 | AA10: 1 | AB10: 1 | AC10: 0 | AD10: 0 | AE10: 0 | AF10: 0 | AG10: 0 | AH10: 0 | AI10: 0 | AJ10: 0 | AK10: 0 | AL10: 0 | AM10: 0 | AN10: 0 | AO10: 1 | AP10: 0 | AQ10: 1 | AR10: FIM
AA11: =AA10*(2^AA9) -> 65536 | AB11: =AB10*(2^AB9) -> 32768 | AC11: 0 | AD11: 0 | AE11: 0 | AF11: 0 | AG11: 0 | AH11: 0 | AI11: 0 | AJ11: 0 | AK11: 0 | AL11: 0 | AM11: 0 | AN11: 0 | AO11: 4 | AP11: 0 | AQ11: 1
B13: Exemplo utilizado no artigo Como Funciona a CAN
B14: CRC de 15 bits conforme CAN 2.0A
B15: Data | C15: =I16&J16&K16&L16&M16&N16&O16&P16&Q16&R16&S16&T16&U16&V16&W16&X16&Y16&Z16&AA16&AB16&AC16&AD16&AE16&AF16&AG16&AH16&AI16&AJ16&AK16&AL16&AM16&AN16&AO16&AP16&AQ16 -> 10000010001000000100000110110101100 | I15: 34 | J15: 33 | K15: 32 | L15: 31 | M15: 30 | N15: 29 | O15: 28 | P15: 27 | Q15: 26 | R15: 25 | S15: 24 | T15: 23 | U15: 22 | V15: 21 | W15: 20 | X15: 19 | Y15: 18 | Z15: 17 | AA15: 16 | AB15: 15 | AC15: 14 | AD15: 14 | AE15: 12 | AF15: 11 | AG15: 10 | AH15: 9 | AI15: 8 | AJ15: 7 | AK15: 6 | AL15: 5 | AM15: 4 | AN15: 3 | AO15: 2 | AP15: 1 | AQ15: 0
C16: Decimal | D16: =SUM(I17:AQ17) -> 17465216428 | I16: 1 | J16: 0 | K16: 0 | L16: 0 | M16: 0 | N16: 0 | O16: 1 | P16: 0 | Q16: 0 | R16: 0 | S16: 1 | T16: 0 | U16: 0 | V16: 0 | W16: 0 | X16: 0 | Y16: 0 | Z16: 1 | AA16: 0 | AB16: 0 | AC16: 0 | AD16: 0 | AE16: 0 | AF16: 1 | AG16: 1 | AH16: 0 | AI16: 1 | AJ16: 1 | AK16: 0 | AL16: 1 | AM16: 0 | AN16: 1 | AO16: 1 | AP16: 0 | AQ16: 0 | AR16: 0 | AS16: 0 | AT16: 0 | AU16: 0 | AV16: 0 | AW16: 0 | AX16: 0 | AY16: 0 | AZ16: 0 | BA16: 0 | BB16: 0 | BC16: 0 | BD16: 0 | BE16: 0 | BF16: 0 | BG16: FIM
I17: =I16*(2^I15) -> 17179869184 | J17: 0 | K17: 0 | L17: 0 | M17: 0 | N17: 0 | O17: 268435456 | P17: 0 | Q17: 0 | R17: 0 | S17: 16777216 | T17: 0 | U17: 0 | V17: 0 | W17: 0 | X17: 0 | Y17: 0 | Z17: 131072 | AA17: 0 | AB17: 0 | AC17: 0 | AD17: 0 | AE17: 0 | AF17: 2048 | AG17: 1024 | AH17: 0 | AI17: 256 | AJ17: 128 | AK17: 0 | AL17: 32 | AM17: 0 | AN17: 8 | AO17: 4 | AP17: 0 | AQ17: 0
B19: Divisor | C19: =AA20&AB20&AC20&AD20&AE20&AF20&AG20&AH20&AI20&AJ20&AK20&AL20&AM20&AN20&AO20&AP20&AQ20 -> 1100010110011001 | D19: X^15+X^14+X^10+X^8+X^7+X^4+X^3+1 | H19: 0x C599 | AB19: 15 | AC19: 14 | AD19: 13 | AE19: 12 | AF19: 11 | AG19: 10 | AH19: 9 | AI19: 8 | AJ19: 7 | AK19: 6 | AL19: 5 | AM19: 4 | AN19: 3 | AO19: 2 | AP19: 1 | AQ19: 0
C20: Decimal | D20: =SUM(AB21:AQ21) -> 50585 | AB20: 1 | AC20: 1 | AD20: 0 | AE20: 0 | AF20: 0 | AG20: 1 | AH20: 0 | AI20: 1 | AJ20: 1 | AK20: 0 | AL20: 0 | AM20: 1 | AN20: 1 | AO20: 0 | AP20: 0 | AQ20: 1 | AR20: FIM
AB21: =AB20*(2^AB19) -> 32768 | AC21: 16384 | AD21: 0 | AE21: 0 | AF21: 0 | AG21: 1024 | AH21: 0 | AI21: 256 | AJ21: 128 | AK21: 0 | AL21: 0 | AM21: 16 | AN21: 8 | AO21: 0 | AP21: 0 | AQ21: 1
B23: Exemplo retirado da Wikepedia: https://pt.wikipedia.org/wiki/CRC
B24: CRC de 4 bits: X3 + X + 1
B25: Data | C25: =I26&J26&K26&L26&M26&N26&O26&P26&Q26&R26&S26&T26&U26&V26 -> 11010011101100 | I25: 14 | J25: 12 | K25: 11 | L25: 10 | M25: 9 | N25: 8 | O25: 7 | P25: 6 | Q25: 5 | R25: 4 | S25: 3 | T25: 2 | U25: 1 | V25: 0
C26: Decimal | D26: =SUM(I27:V27) -> 21740 | I26: 1 | J26: 1 | K26: 0 | L26: 1 | M26: 0 | N26: 0 | O26: 1 | P26: 1 | Q26: 1 | R26: 0 | S26: 1 | T26: 1 | U26: 0 | V26: 0 | W26: 0 | X26: 0 | Y26: 0 | Z26: FIM
I27: =I26*(2^I25) -> 16384 | J27: 4096 | K27: 0 | L27: 1024 | M27: 0 | N27: 0 | O27: 128 | P27: 64 | Q27: 32 | R27: 0 | S27: 8 | T27: 4 | U27: 0 | V27: 0
B29: Divisor | C29: =AA30&AB30&AC30&AD30&AE30&AF30&AG30&AH30&AI30&AJ30&AK30&AL30&AM30&S30&T30&U30&V30 -> 1011 | D29: X^3 + X + 1 | H29: 0x 0B | S29: 3 | T29: 2 | U29: 1 | V29: 0
C30: Decimal | D30: =SUM(S31:V31) -> 11 | S30: 1 | T30: 0 | U30: 1 | V30: 1 | W30: FIM
S31: =S30*(2^S29) -> 8 | T31: =T30*(2^T29) -> 0 | U31: =U30*(2^U29) -> 2 | V31: =V30*(2^V29) -> 1
B33: Exemplo retirado de https://www.lammertbies.nl/comm/info/crc-calculation.html
B34: CRC de 3 bits: X^2 + 1
B35: Data | C35: =I36&J36&K36&L36&M36&N36&O36&T36&Q36&R36&S36&#REF!&U36&V36&W36&X36&Y36&Z36&AA36&AB36&AC36&AD36&AE36&AF36&AG36&AH36&AI36&AJ36&AK36&AL36&AM36&AN36&AO36&AP36&AQ36 ->  | I35: 6 | J35: 5 | K35: 4 | L35: 3 | M35: 2 | N35: 1 | O35: 0
C36: Decimal | D36: =SUM(I37:AQ37) -> 109 | I36: 1 | J36: 1 | K36: 0 | L36: 1 | M36: 1 | N36: 0 | O36: 1 | P36: 0 | Q36: 0 | R36: 0 | S36: 0 | T36: FIM
I37: =I36*(2^I35) -> 64 | J37: 32 | K37: 0 | L37: 8 | M37: 4 | N37: 0 | O37: 1
B39: Divisor | C39: =AA40&I40&J40&K40&L40&M40&N40&O40&P40&Q40&R40&S40&T40&U40&V40&W40&X40 -> 10011FIM | D39: X^2+X+1 | H39: 0x 05 | I39: 4 | J39: 3 | K39: 2 | L39: 1 | M39: 0
C40: Decimal | D40: =SUM(I41:X41) -> 6 | I40: 1 | J40: 0 | K40: 0 | L40: 1 | M40: 1 | N40: FIM
I41: =I40*(2^K39) -> 4 | J41: =J40*(2^L39) -> 0 | K41: =K40*(2^M39) -> 0 | L41: =L40*(2^N39) -> 1 | M41: =M40*(2^O39) -> 1
